{"text_format":"1","workbook":"xlsx","n_sheets":6,"sheets":["INDICE","ESCRIBANO-A-S","ABOGADO-A-S APODERADO-A-S","REPRESENTANTE LEGAL","LISTA","BASE DATOS"],"not_rendered":{"charts":0,"images":0,"macros":1,"external_links":0,"defined_names":3,"comments":0,"pivot_tables":0},"unopened":[],"bounds":{"document_bytes":16777216,"sheet_cells":100000,"rows_first":2000,"rows_last":500,"rows_between":2000,"halvings":0,"cell_chars":16384,"cell_head_chars":4096},"cells_cut":0,"cells_raw":0,"read":"whole","date_system":"1900"}

{"sheet":"INDICE","index":0,"n_rows":5,"n_cols":2,"rows_kept":5,"cut":false,"hidden":false,"merged":[]}
[]
["INSTRUCTIVO"]
["ESCRIBANO-A-S","FORMULARIO PARA TRAMITES EFECTUADO POR ESCRIBANO/AS."]
["ABOGADO-A-S APODERADO-A-S","FORMULARIO PARA TRAMITES EFECTUADO APODERADO/AS LETRADO/AS"]
["REPRESENTANTE LEGAL","FORMULARIO PARA TRAMITES EFECTUADO POR EL REPRESENTANTE LEGAL."]

{"sheet":"ESCRIBANO-A-S","index":1,"n_rows":67,"n_cols":9,"rows_kept":67,"cut":false,"hidden":false,"merged":[[1,0,1,7],[12,0,12,7],[16,0,16,5],[18,0,18,5],[17,0,17,5],[7,5,7,7],[10,2,10,7],[11,2,11,7],[4,2,4,4],[5,2,5,4],[4,5,4,7],[5,5,5,7],[6,5,6,7],[13,0,13,4],[6,0,6,1],[6,2,6,4],[62,0,62,7],[63,0,63,7],[65,0,65,7],[66,0,66,1],[66,2,66,4],[64,0,64,5],[7,0,7,1],[7,2,7,4],[4,0,4,1],[5,0,5,1],[19,9,19,13],[12,12,12,13],[9,0,9,1],[9,2,9,7],[10,0,10,1],[11,0,11,1],[14,0,14,4],[15,0,15,4]]}
["MODELO RUBRICA 1",null,null,null,null,null,null,null,"FIL"]
["CERTIFICACIÓN DE ESCRIBANO/A/S",null,null,null,null,null,null,null,1]
["EXPTE:",null,null,null,null,null,null,null,1]
["LEGAJO:",null,null,null,null,null,null,null,1]
["DETALLE",null,"DATO/ APELLIDO/S -personas humanas- (1)",null,null,"DATO/ NOMBRE/S -personas humanas- (1)",null,null,1]
["TITULAR DE LOS LIBROS -si es pers. jca. repetir en ambas columnas-:",null,null,null,null,null,null,null,1]
["ESCRIBANO/A QUE SOLICITA RÚBRICA:",null,null,null,null,null,null,null,1]
["ESCRIBANO/A QUE SOLICITA RÚBRICA:",null,null,null,null,null,null,null,{"$f":"+IF(AND(C8=\"\",F8=\"\"),0,1)","v":0}]
[null,null,null,null,null,null,null,null,1]
["CUIT DEL TITULAR DE LOS LIBROS:",null,null,null,null,null,null,null,1]
["DOMICILIO PROCESAL:",null,null,null,null,null,null,null,1]
["EMAIL:",null,null,null,null,null,null,null,1]
["(1) Si se trata de persona jurídica -la persona titular de los libros- repetir en cada celda.",null,null,null,null,null,null,null,1]
[null,null,null,null,null,null,null,null,0]
[null,null,null,null,null,null,null,null,0]
[null,null,null,null,null,null,null,null,0]
[null,null,null,null,null,null,null,null,1]
["¿EXISTE DECLARACIÓN JURADA/CERTIFICACIÓN DE LIBROS PRESENTADA CON ANTERIORIDAD?",null,null,null,null,null,"ELEGIR",null,1]
["FOJA/S DECLARACIÓN JURADA/CERTIFICACIÓN DE LIBRO/S RUBRICADO/S ÚLTIMA:",null,null,null,null,null,null,null,1]
["LIBRO/S RUBRICADO/S CON ANTERIORIDAD",null,null,null,null,null,null,null,{"$f":"IF(G$18=\"NO\",0,1)","v":1}]
[null,"NOMBRE LIBROS RUBRICADOS CON ANTERIORIDAD","NRO. DEL LIBRO","ENCUADERNADO -E- / MÓVIL -M-","1ER FOLIO DEL LIBRO","ÚLTIMO FOLIO DEL LIBRO","EXPTE. NRO.","FS. RES. INSCR. (1)",{"$f":"IF(G$18=\"NO\",0,1)","v":1}]
["LIBRO RUBRICADO:",null,null,"ELEGIR",null,null,null,null,{"$f":"IF(B22=\"\",0,1)","v":0}]
["LIBRO RUBRICADO:",null,null,"ELEGIR",null,null,null,null,{"$f":"IF(B23=\"\",0,1)","v":0}]
["LIBRO RUBRICADO:",null,null,"ELEGIR",null,null,null,null,0]
["LIBRO RUBRICADO:",null,null,"ELEGIR",null,null,null,null,0]
["LIBRO RUBRICADO:",null,null,"ELEGIR",null,null,null,null,0]
["LIBRO RUBRICADO:",null,null,"ELEGIR",null,null,null,null,0]
["LIBRO RUBRICADO:",null,null,"ELEGIR",null,null,null,null,0]
["LIBRO RUBRICADO:",null,null,"ELEGIR",null,null,null,null,0]
["LIBRO RUBRICADO:",null,null,"ELEGIR",null,null,null,null,0]
["LIBRO RUBRICADO:",null,null,"ELEGIR",null,null,null,null,0]
["LIBRO RUBRICADO:",null,null,"ELEGIR",null,null,null,null,0]
["LIBRO RUBRICADO:",null,null,"ELEGIR",null,null,null,null,0]
["LIBRO RUBRICADO:",null,null,"ELEGIR",null,null,null,null,0]
["LIBRO RUBRICADO:",null,null,"ELEGIR",null,null,null,null,0]
["LIBRO RUBRICADO:",null,null,"ELEGIR",null,null,null,null,0]
["LIBRO RUBRICADO:",null,null,"ELEGIR",null,null,null,null,0]
["LIBRO RUBRICADO",null,null,"ELEGIR",null,null,null,null,0]
["LIBRO RUBRICADO",null,null,"ELEGIR",null,null,null,null,0]
["LIBRO RUBRICADO",null,null,"ELEGIR",null,null,null,null,0]
["LIBRO RUBRICADO",null,null,"ELEGIR",null,null,null,null,0]
["‘(1) Resolución que ordenó la rúbrica",null,null,null,null,null,null,null,{"$f":"IF(G$18=\"NO\",0,1)","v":1}]
["LIBRO/S A RUBRICAR",null,null,null,null,null,null,null,1]
[null,"NOMBRE LIBRO","NRO. DEL LIBRO","ENCUADERNADO -E- / MÓVIL -M-","1ER FOLIO DEL LIBRO","ÚLTIMO FOLIO DEL LIBRO","NRO. EXPTE. SE AUTORIZO HOJAS MÓVIL (2)","NRO. FOJA DEL EXPTE. SE AUTORIZO HOJAS MÓVIL (3)",1]
["LIBRO A RUBRICAR:",null,null,"ELEGIR",null,null,null,null,0]
["LIBRO A RUBRICAR:",null,null,"ELEGIR",null,null,null,null,0]
["LIBRO A RUBRICAR:",null,null,"ELEGIR",null,null,null,null,0]
["LIBRO A RUBRICAR:",null,null,"ELEGIR",null,null,null,null,0]
["LIBRO A RUBRICAR:",null,null,"ELEGIR",null,null,null,null,0]
["LIBRO A RUBRICAR:",null,null,"ELEGIR",null,null,null,null,0]
["LIBRO A RUBRICAR:",null,null,"ELEGIR",null,null,null,null,0]
["LIBRO A RUBRICAR:",null,null,"ELEGIR",null,null,null,null,0]
["LIBRO A RUBRICAR:",null,null,"ELEGIR",null,null,null,null,0]
["LIBRO A RUBRICAR:",null,null,"ELEGIR",null,null,null,null,0]
["LIBRO A RUBRICAR:",null,null,"ELEGIR",null,null,null,null,0]
["LIBRO A RUBRICAR:",null,null,"ELEGIR",null,null,null,null,0]
["LIBRO A RUBRICAR:",null,null,"ELEGIR",null,null,null,null,0]
["LIBRO A RUBRICAR:",null,null,"ELEGIR",null,null,null,null,0]
["LIBRO A RUBRICAR:",null,null,"ELEGIR",null,null,null,null,0]
["LIBRO A RUBRICAR:",null,null,"ELEGIR",null,null,null,null,0]
["LIBRO A RUBRICAR:",null,null,"ELEGIR",null,null,null,null,0]
["LIBRO A RUBRICAR:",null,null,"ELEGIR",null,null,null,null,0]
["‘(2) Indicar número de expediente donde se autorizó el uso de medios mecánicos para cada libro en hoja móviles.-",null,null,null,null,null,null,null,1]
["‘(3) Indicar número de FOJA del expediente donde se autorizó el uso de medios mecánicos para cada libro en hoja móviles.-",null,null,null,null,null,null,null,1]
["¿SE ENVIO POR EMAIL ARCHIVO?",null,null,null,null,null,"ELEGIR",null,1]
["CERTIFICO que verifiqué –mediante la consulta de los libros/documentales correspondientes- que quien/es me solicitaron gestionar la rúbrica de nuevo/s libro/s es/son representante/s legal/es con facultades suficientes para requerirlo. Asimismo verifiqué que la sociedad se encuentra dentro de su plazo de duración sin impedimento para la/s rúbrica/s peticionada/s.",null,null,null,null,null,null,null,1]
["FECHA -DD/MM/AA-:",null,null,null,null,null,null,null,1]

{"sheet":"ABOGADO-A-S APODERADO-A-S","index":2,"n_rows":67,"n_cols":9,"rows_kept":67,"cut":false,"hidden":false,"merged":[[12,12,12,13],[66,0,66,1],[66,2,66,4],[17,0,17,5],[18,0,18,5],[19,9,19,13],[62,0,62,7],[63,0,63,7],[65,0,65,7],[16,0,16,5],[13,0,13,5],[14,0,14,5],[15,0,15,5],[12,0,12,7],[64,0,64,5],[9,0,9,1],[9,2,9,7],[10,0,10,1],[10,2,10,7],[11,0,11,1],[11,2,11,7],[6,0,6,1],[6,2,6,4],[6,5,6,7],[7,0,7,1],[7,2,7,4],[7,5,7,7],[1,0,1,7],[4,0,4,1],[4,2,4,4],[4,5,4,7],[5,0,5,1],[5,2,5,4],[5,5,5,7]]}
["MODELO RUBRICA 2",null,null,null,null,null,null,null,"FIL"]
["DECLARACIÓN JURADA DE APODERADO/A/S LETRADO/A/S",null,null,null,null,null,null,null,1]
["EXPTE:",null,null,null,null,null,null,null,1]
["LEGAJO:",null,null,null,null,null,null,null,1]
["DETALLE",null,"DATO/ APELLIDO/S -personas humanas- (1)",null,null,"DATO/ NOMBRE/S -personas humanas- (1)",null,null,1]
["TITULAR DE LOS LIBROS:",null,null,null,null,null,null,null,1]
["LETRADO/A APODERADO/A QUE SOLICITA RÚBRICA:",null,null,null,null,null,null,null,1]
["LETRADO/A APODERADO/A QUE SOLICITA RÚBRICA:",null,null,null,null,null,null,null,{"$f":"+IF(AND(C8=\"\",F8=\"\"),0,1)","v":0}]
[null,null,null,null,null,null,null,null,1]
["CUIT DEL TITULAR DE LOS LIBROS:",null,null,null,null,null,null,null,1]
["DOMICILIO PROCESAL:",null,null,null,null,null,null,null,1]
["EMAIL:",null,null,null,null,null,null,null,1]
["(1) Si se trata de persona jurídica -la persona titular de los libros- repetir en cada celda.",null,null,null,null,null,null,null,1]
["DOCUMENTO",null,null,null,null,null,"MARCAR C/\"X\" lo acompañado",null,1]
["COPIA PODER GRAL. P/ACTUACIONES JUDICIALES -firmada por letrado interviniente-",null,null,null,null,null,null,null,1]
["PODER ESPECIAL ORIGINAL",null,null,null,null,null,null,null,1]
[null,null,null,null,null,null,null,null,1]
["¿EXISTE DECLARACIÓN JURADA/CERTIFICACIÓN DE LIBROS PRESENTADA CON ANTERIORIDAD?",null,null,null,null,null,"ELEGIR",null,1]
["FOJA/S DECLARACIÓN JURADA/CERTIFICACIÓN DE LIBRO/S RUBRICADO/S ÚLTIMA:",null,null,null,null,null,null,null,1]
["LIBRO/S RUBRICADO/S CON ANTERIORIDAD",null,null,null,null,null,null,null,{"$f":"IF(G$18=\"NO\",0,1)","v":1}]
[null,"NOMBRE LIBROS RUBRICADOS CON ANTERIORIDAD","NRO. DEL LIBRO","ENCUADERNADO -E- / MÓVIL -M-","1ER FOLIO DEL LIBRO","ÚLTIMO FOLIO DEL LIBRO","EXPTE. NRO.","FS. RES. INSCR. (1)",{"$f":"IF(G$18=\"NO\",0,1)","v":1}]
["LIBRO RUBRICADO:",null,null,"ELEGIR",null,null,null,null,{"$f":"IF(B22=\"\",0,1)","v":0}]
["LIBRO RUBRICADO:",null,null,"ELEGIR",null,null,null,null,{"$f":"IF(B23=\"\",0,1)","v":0}]
["LIBRO RUBRICADO:",null,null,"ELEGIR",null,null,null,null,0]
["LIBRO RUBRICADO:",null,null,"ELEGIR",null,null,null,null,0]
["LIBRO RUBRICADO:",null,null,"ELEGIR",null,null,null,null,0]
["LIBRO RUBRICADO:",null,null,"ELEGIR",null,null,null,null,0]
["LIBRO RUBRICADO:",null,null,"ELEGIR",null,null,null,null,0]
["LIBRO RUBRICADO:",null,null,"ELEGIR",null,null,null,null,0]
["LIBRO RUBRICADO:",null,null,"ELEGIR",null,null,null,null,0]
["LIBRO RUBRICADO:",null,null,"ELEGIR",null,null,null,null,0]
["LIBRO RUBRICADO:",null,null,"ELEGIR",null,null,null,null,0]
["LIBRO RUBRICADO:",null,null,"ELEGIR",null,null,null,null,0]
["LIBRO RUBRICADO:",null,null,"ELEGIR",null,null,null,null,0]
["LIBRO RUBRICADO:",null,null,"ELEGIR",null,null,null,null,0]
["LIBRO RUBRICADO:",null,null,"ELEGIR",null,null,null,null,0]
["LIBRO RUBRICADO:",null,null,"ELEGIR",null,null,null,null,0]
["LIBRO RUBRICADO",null,null,"ELEGIR",null,null,null,null,0]
["LIBRO RUBRICADO",null,null,"ELEGIR",null,null,null,null,0]
["LIBRO RUBRICADO",null,null,"ELEGIR",null,null,null,null,0]
["LIBRO RUBRICADO",null,null,"ELEGIR",null,null,null,null,0]
["‘(1) Resolución que ordenó la rúbrica",null,null,null,null,null,null,null,{"$f":"IF(G$18=\"NO\",0,1)","v":1}]
["LIBRO/S A RUBRICAR",null,null,null,null,null,null,null,1]
[null,"NOMBRE LIBRO","NRO. DEL LIBRO","ENCUADERNADO -E- / MÓVIL -M-","1ER FOLIO DEL LIBRO","ÚLTIMO FOLIO DEL LIBRO","NRO. EXPTE. SE AUTORIZO HOJAS MÓVIL (2)","NRO. FOJA DEL EXPTE. SE AUTORIZO HOJAS MÓVIL (3)",1]
["LIBRO A RUBRICAR:",null,null,"ELEGIR",null,null,null,null,0]
["LIBRO A RUBRICAR:",null,null,"ELEGIR",null,null,null,null,0]
["LIBRO A RUBRICAR:",null,null,"ELEGIR",null,null,null,null,0]
["LIBRO A RUBRICAR:",null,null,"ELEGIR",null,null,null,null,0]
["LIBRO A RUBRICAR:",null,null,"ELEGIR",null,null,null,null,0]
["LIBRO A RUBRICAR:",null,null,"ELEGIR",null,null,null,null,0]
["LIBRO A RUBRICAR:",null,null,"ELEGIR",null,null,null,null,0]
["LIBRO A RUBRICAR:",null,null,"ELEGIR",null,null,null,null,0]
["LIBRO A RUBRICAR:",null,null,"ELEGIR",null,null,null,null,0]
["LIBRO A RUBRICAR:",null,null,"ELEGIR",null,null,null,null,0]
["LIBRO A RUBRICAR:",null,null,"ELEGIR",null,null,null,null,0]
["LIBRO A RUBRICAR:",null,null,"ELEGIR",null,null,null,null,0]
["LIBRO A RUBRICAR:",null,null,"ELEGIR",null,null,null,null,0]
["LIBRO A RUBRICAR:",null,null,"ELEGIR",null,null,null,null,0]
["LIBRO A RUBRICAR:",null,null,"ELEGIR",null,null,null,null,0]
["LIBRO A RUBRICAR:",null,null,"ELEGIR",null,null,null,null,0]
["LIBRO A RUBRICAR:",null,null,"ELEGIR",null,null,null,null,0]
["LIBRO A RUBRICAR:",null,null,"ELEGIR",null,null,null,null,0]
["‘(2) Indicar número de expediente donde se autorizó el uso de medios mecánicos para cada libro en hoja móviles.-",null,null,null,null,null,null,null,1]
["‘(3) Indicar número de FOJA del expediente donde se autorizó el uso de medios mecánicos para cada libro en hoja móviles.-",null,null,null,null,null,null,null,1]
["¿SE ENVIO POR EMAIL ARCHIVO?",null,null,null,null,null,"ELEGIR",null,1]
["DECLARO que en el carácter de APODERADO/A LETRADO/A cuento con facultades suficientes para solicitar la/s rúbrica/s de nuevo/s libro/s. Asimismo la sociedad se encuentra dentro de su plazo de duración sin impedimento para la/s rúbrica/s peticionada/s.",null,null,null,null,null,null,null,1]
["FECHA -DD/MM/AA-:",null,null,null,null,null,null,null,1]

{"sheet":"REPRESENTANTE LEGAL","index":3,"n_rows":67,"n_cols":9,"rows_kept":67,"cut":false,"hidden":false,"merged":[[1,0,1,7],[4,0,4,1],[4,2,4,4],[4,5,4,7],[5,0,5,1],[5,2,5,4],[5,5,5,7],[6,0,6,1],[6,2,6,4],[6,5,6,7],[7,0,7,1],[7,2,7,4],[7,5,7,7],[9,0,9,1],[9,2,9,7],[10,0,10,1],[10,2,10,7],[11,0,11,1],[11,2,11,7],[19,9,19,13],[62,0,62,7],[63,0,63,7],[65,0,65,7],[12,0,12,7],[12,12,12,13],[15,0,15,4],[16,0,16,5],[66,0,66,1],[66,2,66,4],[13,0,13,5],[14,0,14,5],[17,0,17,5],[18,0,18,5],[64,0,64,5]]}
["MODELO RUBRICA 3",null,null,null,null,null,null,null,"FIL"]
["DECLARACIÓN JURADA DE REPRESENTANTE LEGAL",null,null,null,null,null,null,null,1]
["EXPTE:",null,null,null,null,null,null,null,1]
["LEGAJO:",null,null,null,null,null,null,null,1]
["DETALLE",null,"DATO/ APELLIDO/S -personas humanas- (1)",null,null,"DATO/ NOMBRE/S -personas humanas- (1)",null,null,1]
["TITULAR DE LOS LIBROS:",null,null,null,null,null,null,null,1]
["REPRESENTANTE LEGAL QUE SOLICITA RÚBRICA:",null,null,null,null,null,null,null,1]
["PATROCINANTE LETRADO/A:",null,null,null,null,null,null,null,{"$f":"+IF(AND(C8=\"\",F8=\"\"),0,1)","v":0}]
[null,null,null,null,null,null,null,null,1]
["CUIT DEL TITULAR DE LOS LIBROS:",null,null,null,null,null,null,null,1]
["DOMICILIO PROCESAL:",null,null,null,null,null,null,null,1]
["EMAIL:",null,null,null,null,null,null,null,1]
["(1) Si se trata de persona jurídica -la persona titular de los libros- repetir en cada celda.",null,null,null,null,null,null,null,1]
["DOCUMENTO",null,null,null,null,null,"MARCAR C/\"X\" ACOMPAÑADO",null,1]
["INFORME/CERTIFICACIÓN/DICTAMEN CONTADOR -C/FIRMA LEGALIZADA POR ANTE CONS. PROF. CS. ES.- INDIQUE: 1.- ÚLTIMO REPRESENTANTE/S LEGAL/ES INSCRIPTO/S ASENTADO EN EL LIBRO DE ACTA DE REUNIÓN/ASAMBLEA. 2.- CONSTANCIA DE ACEPTACIÓN DE CARGO DE QUIÉN SE PRESENTA. 3.- SI EL LIBRO ES LLEVADO EN LEGAL FORMA.",null,null,null,null,null,null,null,1]
[null,null,null,null,null,null,null,null,1]
[null,null,null,null,null,null,null,null,1]
["¿EXISTE DECLARACIÓN JURADA/CERTIFICACIÓN DE LIBROS PRESENTADA CON ANTERIORIDAD?",null,null,null,null,null,"NO",null,1]
["FOJA/S DECLARACIÓN JURADA/CERTIFICACIÓN DE LIBRO/S RUBRICADO/S ÚLTIMA:",null,null,null,null,null,null,null,1]
["LIBRO/S RUBRICADO/S CON ANTERIORIDAD",null,null,null,null,null,null,null,{"$f":"IF(G$18=\"NO\",0,1)","v":0}]
[null,"NOMBRE LIBROS RUBRICADOS CON ANTERIORIDAD","NRO. DEL LIBRO","ENCUADERNADO -E- / MÓVIL -M-","1ER FOLIO DEL LIBRO","ÚLTIMO FOLIO DEL LIBRO","EXPTE. NRO.","FS. RES. INSCR. (1)",{"$f":"IF(G$18=\"NO\",0,1)","v":0}]
["LIBRO RUBRICADO:",null,null,"ELEGIR",null,null,null,null,{"$f":"IF(B22=\"\",0,1)","v":0}]
["LIBRO RUBRICADO:",null,null,"ELEGIR",null,null,null,null,{"$f":"IF(B23=\"\",0,1)","v":0}]
["LIBRO RUBRICADO:",null,null,"ELEGIR",null,null,null,null,0]
["LIBRO RUBRICADO:",null,null,"ELEGIR",null,null,null,null,0]
["LIBRO RUBRICADO:",null,null,"ELEGIR",null,null,null,null,0]
["LIBRO RUBRICADO:",null,null,"ELEGIR",null,null,null,null,0]
["LIBRO RUBRICADO:",null,null,"ELEGIR",null,null,null,null,0]
["LIBRO RUBRICADO:",null,null,"ELEGIR",null,null,null,null,0]
["LIBRO RUBRICADO:",null,null,"ELEGIR",null,null,null,null,0]
["LIBRO RUBRICADO:",null,null,"ELEGIR",null,null,null,null,0]
["LIBRO RUBRICADO:",null,null,"ELEGIR",null,null,null,null,0]
["LIBRO RUBRICADO:",null,null,"ELEGIR",null,null,null,null,0]
["LIBRO RUBRICADO:",null,null,"ELEGIR",null,null,null,null,0]
["LIBRO RUBRICADO:",null,null,"ELEGIR",null,null,null,null,0]
["LIBRO RUBRICADO:",null,null,"ELEGIR",null,null,null,null,0]
["LIBRO RUBRICADO:",null,null,"ELEGIR",null,null,null,null,0]
["LIBRO RUBRICADO",null,null,"ELEGIR",null,null,null,null,0]
["LIBRO RUBRICADO",null,null,"ELEGIR",null,null,null,null,0]
["LIBRO RUBRICADO",null,null,"ELEGIR",null,null,null,null,0]
["LIBRO RUBRICADO",null,null,"ELEGIR",null,null,null,null,0]
["‘(1) Resolución que ordenó la rúbrica",null,null,null,null,null,null,null,{"$f":"IF(G$18=\"NO\",0,1)","v":0}]
["LIBRO/S A RUBRICAR",null,null,null,null,null,null,null,1]
[null,"NOMBRE LIBRO","NRO. DEL LIBRO","ENCUADERNADO -E- / MÓVIL -M-","1ER FOLIO DEL LIBRO","ÚLTIMO FOLIO DEL LIBRO","NRO. EXPTE. SE AUTORIZO HOJAS MÓVIL (2)","NRO. FOJA DEL EXPTE. SE AUTORIZO HOJAS MÓVIL (3)",1]
["LIBRO A RUBRICAR:",null,null,"ELEGIR",null,null,null,null,0]
["LIBRO A RUBRICAR:",null,null,"ELEGIR",null,null,null,null,0]
["LIBRO A RUBRICAR:",null,null,"ELEGIR",null,null,null,null,0]
["LIBRO A RUBRICAR:",null,null,"ELEGIR",null,null,null,null,0]
["LIBRO A RUBRICAR:",null,null,"ELEGIR",null,null,null,null,0]
["LIBRO A RUBRICAR:",null,null,"ELEGIR",null,null,null,null,0]
["LIBRO A RUBRICAR:",null,null,"ELEGIR",null,null,null,null,0]
["LIBRO A RUBRICAR:",null,null,"ELEGIR",null,null,null,null,0]
["LIBRO A RUBRICAR:",null,null,"ELEGIR",null,null,null,null,0]
["LIBRO A RUBRICAR:",null,null,"ELEGIR",null,null,null,null,0]
["LIBRO A RUBRICAR:",null,null,"ELEGIR",null,null,null,null,0]
["LIBRO A RUBRICAR:",null,null,"ELEGIR",null,null,null,null,0]
["LIBRO A RUBRICAR:",null,null,"ELEGIR",null,null,null,null,0]
["LIBRO A RUBRICAR:",null,null,"ELEGIR",null,null,null,null,0]
["LIBRO A RUBRICAR:",null,null,"ELEGIR",null,null,null,null,0]
["LIBRO A RUBRICAR:",null,null,"ELEGIR",null,null,null,null,0]
["LIBRO A RUBRICAR:",null,null,"ELEGIR",null,null,null,null,0]
["LIBRO A RUBRICAR:",null,null,"ELEGIR",null,null,null,null,0]
["‘(2) Indicar número de expediente donde se autorizó el uso de medios mecánicos para cada libro en hoja móviles.-",null,null,null,null,null,null,null,1]
["‘(3) Indicar número de FOJA del expediente donde se autorizó el uso de medios mecánicos para cada libro en hoja móviles.-",null,null,null,null,null,null,null,1]
["¿SE ENVIO POR EMAIL ARCHIVO?",null,null,null,null,null,"ELEGIR",null,1]
["DECLARO que en el carácter de REPRESENTANTE LEGAL cuento con facultades suficientes para solicitar la/s rúbrica/s de nuevo/s libro/s. Asimismo la sociedad se encuentra dentro de su plazo de duración sin impedimento para la/s rúbrica/s peticionada/s.",null,null,null,null,null,null,null,1]
["FECHA -DD/MM/AA-:",null,null,null,null,null,null,null,1]

{"sheet":"LISTA","index":4,"n_rows":8,"n_cols":1,"rows_kept":8,"cut":false,"hidden":false,"merged":[]}
[]
["ELEGIR"]
["M"]
["E"]
[]
["ELEGIR"]
["SI"]
["NO"]

{"sheet":"BASE DATOS","index":5,"n_rows":122,"n_cols":17,"rows_kept":122,"cut":false,"hidden":true,"merged":[[3,9,4,9],[3,10,4,10],[3,11,4,11],[3,12,3,16],[3,17,4,17],[2,4,2,5],[2,7,2,8],[3,0,4,0],[3,1,4,1],[3,2,3,3],[3,4,4,4],[3,5,4,5],[3,6,3,7],[3,8,4,8]]}
["BASE DE DATOS"]
["EXPTE. NRO. DONDE SE DENUNCIÓ DATOS:",null,null,null,null,null,null,{"$f":"+IF(G2>0,\".\",\"ERROR llene NRO. EXPTE.\")","v":"ERROR llene NRO. EXPTE."}]
[null,null,null,null,"NRO. DE LEGAJO",null,null,{"$f":"+IF(G3>0,\".\",\"ERROR llene NRO. LEGAJO\")","v":"ERROR llene NRO. LEGAJO"}]
["COD. Int.","FORM.","DATOS DENUNCIADOS",null,"VINCULADOS","VINCULADOS","DATOS",null,"FECHA","NRO. DE LEGAJO","EXPTE./OTROS","NOTA/ OTROS","OBSERVACION"]
[null,null,"INSCRIPTO RPC","FECHA ALTA/MO-DIFICACIÓN",null,null,"CONCEPTO","COMPLETAR -EN MAYUSCULA -",null,null,null,null,"FECHA","DETALLE","EXPTE./ OTRO/s","FS.","NOTA/ OTROS"]
[{"$f":"IF(H6=0,0,1)","v":1},"RU",{"$f":"+'ESCRIBANO-A-S'!$C$6","v":0},{"$f":"+'ESCRIBANO-A-S'!C67:E67","v":"00:00:00"},{"$f":"+'ESCRIBANO-A-S'!$C$6","v":0},{"$f":"+'ESCRIBANO-A-S'!$F$6","v":0},"LIBRO RUBRICADO","NOMBRE LIBRO","NRO. DEL LIBRO","ENCUADERNADO -E- / MÓVIL -M-","1ER FOLIO DEL LIBRO","ÚLTIMO FOLIO DEL LIBRO","NRO. EXPTE.","FOJAS"]
[{"$f":"IF(H7=0,0,1)","v":0},"RU",{"$f":"+'ESCRIBANO-A-S'!$C$6","v":0},{"$f":"+'ESCRIBANO-A-S'!C68:E68","v":"00:00:00"},{"$f":"+'ESCRIBANO-A-S'!$C$6","v":0},{"$f":"+'ESCRIBANO-A-S'!$F$6","v":0},"LIBRO RUBRICADO",{"$f":"+'ESCRIBANO-A-S'!B22","v":0},{"$f":"+'ESCRIBANO-A-S'!C22","v":0},{"$f":"+'ESCRIBANO-A-S'!D22","v":"ELEGIR"},{"$f":"+'ESCRIBANO-A-S'!E22","v":0},{"$f":"+'ESCRIBANO-A-S'!F22","v":0},{"$f":"+'ESCRIBANO-A-S'!G22","v":0},{"$f":"+'ESCRIBANO-A-S'!H22","v":0}]
[0,"RU",{"$f":"+'ESCRIBANO-A-S'!$C$6","v":0},{"$f":"+'ESCRIBANO-A-S'!C69:E69","v":"00:00:00"},{"$f":"+'ESCRIBANO-A-S'!$C$6","v":0},{"$f":"+'ESCRIBANO-A-S'!$F$6","v":0},"LIBRO RUBRICADO",{"$f":"+'ESCRIBANO-A-S'!B23","v":0},{"$f":"+'ESCRIBANO-A-S'!C23","v":0},{"$f":"+'ESCRIBANO-A-S'!D23","v":"ELEGIR"},{"$f":"+'ESCRIBANO-A-S'!E23","v":0},{"$f":"+'ESCRIBANO-A-S'!F23","v":0},{"$f":"+'ESCRIBANO-A-S'!G23","v":0},{"$f":"+'ESCRIBANO-A-S'!H23","v":0}]
[0,"RU",{"$f":"+'ESCRIBANO-A-S'!$C$6","v":0},{"$f":"+'ESCRIBANO-A-S'!C70:E70","v":"00:00:00"},{"$f":"+'ESCRIBANO-A-S'!$C$6","v":0},{"$f":"+'ESCRIBANO-A-S'!$F$6","v":0},"LIBRO RUBRICADO",{"$f":"+'ESCRIBANO-A-S'!B24","v":0},{"$f":"+'ESCRIBANO-A-S'!C24","v":0},{"$f":"+'ESCRIBANO-A-S'!D24","v":"ELEGIR"},{"$f":"+'ESCRIBANO-A-S'!E24","v":0},{"$f":"+'ESCRIBANO-A-S'!F24","v":0},{"$f":"+'ESCRIBANO-A-S'!G24","v":0},{"$f":"+'ESCRIBANO-A-S'!H24","v":0}]
[0,"RU",{"$f":"+'ESCRIBANO-A-S'!$C$6","v":0},{"$f":"+'ESCRIBANO-A-S'!C71:E71","v":"00:00:00"},{"$f":"+'ESCRIBANO-A-S'!$C$6","v":0},{"$f":"+'ESCRIBANO-A-S'!$F$6","v":0},"LIBRO RUBRICADO",{"$f":"+'ESCRIBANO-A-S'!B25","v":0},{"$f":"+'ESCRIBANO-A-S'!C25","v":0},{"$f":"+'ESCRIBANO-A-S'!D25","v":"ELEGIR"},{"$f":"+'ESCRIBANO-A-S'!E25","v":0},{"$f":"+'ESCRIBANO-A-S'!F25","v":0},{"$f":"+'ESCRIBANO-A-S'!G25","v":0},{"$f":"+'ESCRIBANO-A-S'!H25","v":0}]
[0,"RU",{"$f":"+'ESCRIBANO-A-S'!$C$6","v":0},{"$f":"+'ESCRIBANO-A-S'!C72:E72","v":"00:00:00"},{"$f":"+'ESCRIBANO-A-S'!$C$6","v":0},{"$f":"+'ESCRIBANO-A-S'!$F$6","v":0},"LIBRO RUBRICADO",{"$f":"+'ESCRIBANO-A-S'!B26","v":0},{"$f":"+'ESCRIBANO-A-S'!C26","v":0},{"$f":"+'ESCRIBANO-A-S'!D26","v":"ELEGIR"},{"$f":"+'ESCRIBANO-A-S'!E26","v":0},{"$f":"+'ESCRIBANO-A-S'!F26","v":0},{"$f":"+'ESCRIBANO-A-S'!G26","v":0},{"$f":"+'ESCRIBANO-A-S'!H26","v":0}]
[0,"RU",{"$f":"+'ESCRIBANO-A-S'!$C$6","v":0},{"$f":"+'ESCRIBANO-A-S'!C73:E73","v":"00:00:00"},{"$f":"+'ESCRIBANO-A-S'!$C$6","v":0},{"$f":"+'ESCRIBANO-A-S'!$F$6","v":0},"LIBRO RUBRICADO",{"$f":"+'ESCRIBANO-A-S'!B27","v":0},{"$f":"+'ESCRIBANO-A-S'!C27","v":0},{"$f":"+'ESCRIBANO-A-S'!D27","v":"ELEGIR"},{"$f":"+'ESCRIBANO-A-S'!E27","v":0},{"$f":"+'ESCRIBANO-A-S'!F27","v":0},{"$f":"+'ESCRIBANO-A-S'!G27","v":0},{"$f":"+'ESCRIBANO-A-S'!H27","v":0}]
[0,"RU",{"$f":"+'ESCRIBANO-A-S'!$C$6","v":0},{"$f":"+'ESCRIBANO-A-S'!C74:E74","v":"00:00:00"},{"$f":"+'ESCRIBANO-A-S'!$C$6","v":0},{"$f":"+'ESCRIBANO-A-S'!$F$6","v":0},"LIBRO RUBRICADO",{"$f":"+'ESCRIBANO-A-S'!B28","v":0},{"$f":"+'ESCRIBANO-A-S'!C28","v":0},{"$f":"+'ESCRIBANO-A-S'!D28","v":"ELEGIR"},{"$f":"+'ESCRIBANO-A-S'!E28","v":0},{"$f":"+'ESCRIBANO-A-S'!F28","v":0},{"$f":"+'ESCRIBANO-A-S'!G28","v":0},{"$f":"+'ESCRIBANO-A-S'!H28","v":0}]
[0,"RU",{"$f":"+'ESCRIBANO-A-S'!$C$6","v":0},{"$f":"+'ESCRIBANO-A-S'!C75:E75","v":"00:00:00"},{"$f":"+'ESCRIBANO-A-S'!$C$6","v":0},{"$f":"+'ESCRIBANO-A-S'!$F$6","v":0},"LIBRO RUBRICADO",{"$f":"+'ESCRIBANO-A-S'!B29","v":0},{"$f":"+'ESCRIBANO-A-S'!C29","v":0},{"$f":"+'ESCRIBANO-A-S'!D29","v":"ELEGIR"},{"$f":"+'ESCRIBANO-A-S'!E29","v":0},{"$f":"+'ESCRIBANO-A-S'!F29","v":0},{"$f":"+'ESCRIBANO-A-S'!G29","v":0},{"$f":"+'ESCRIBANO-A-S'!H29","v":0}]
[0,"RU",{"$f":"+'ESCRIBANO-A-S'!$C$6","v":0},{"$f":"+'ESCRIBANO-A-S'!C76:E76","v":"00:00:00"},{"$f":"+'ESCRIBANO-A-S'!$C$6","v":0},{"$f":"+'ESCRIBANO-A-S'!$F$6","v":0},"LIBRO RUBRICADO",{"$f":"+'ESCRIBANO-A-S'!B30","v":0},{"$f":"+'ESCRIBANO-A-S'!C30","v":0},{"$f":"+'ESCRIBANO-A-S'!D30","v":"ELEGIR"},{"$f":"+'ESCRIBANO-A-S'!E30","v":0},{"$f":"+'ESCRIBANO-A-S'!F30","v":0},{"$f":"+'ESCRIBANO-A-S'!G30","v":0},{"$f":"+'ESCRIBANO-A-S'!H30","v":0}]
[0,"RU",{"$f":"+'ESCRIBANO-A-S'!$C$6","v":0},{"$f":"+'ESCRIBANO-A-S'!C77:E77","v":"00:00:00"},{"$f":"+'ESCRIBANO-A-S'!$C$6","v":0},{"$f":"+'ESCRIBANO-A-S'!$F$6","v":0},"LIBRO RUBRICADO",{"$f":"+'ESCRIBANO-A-S'!B31","v":0},{"$f":"+'ESCRIBANO-A-S'!C31","v":0},{"$f":"+'ESCRIBANO-A-S'!D31","v":"ELEGIR"},{"$f":"+'ESCRIBANO-A-S'!E31","v":0},{"$f":"+'ESCRIBANO-A-S'!F31","v":0},{"$f":"+'ESCRIBANO-A-S'!G31","v":0},{"$f":"+'ESCRIBANO-A-S'!H31","v":0}]
[0,"RU",{"$f":"+'ESCRIBANO-A-S'!$C$6","v":0},{"$f":"+'ESCRIBANO-A-S'!C78:E78","v":"00:00:00"},{"$f":"+'ESCRIBANO-A-S'!$C$6","v":0},{"$f":"+'ESCRIBANO-A-S'!$F$6","v":0},"LIBRO RUBRICADO",{"$f":"+'ESCRIBANO-A-S'!B32","v":0},{"$f":"+'ESCRIBANO-A-S'!C32","v":0},{"$f":"+'ESCRIBANO-A-S'!D32","v":"ELEGIR"},{"$f":"+'ESCRIBANO-A-S'!E32","v":0},{"$f":"+'ESCRIBANO-A-S'!F32","v":0},{"$f":"+'ESCRIBANO-A-S'!G32","v":0},{"$f":"+'ESCRIBANO-A-S'!H32","v":0}]
[0,"RU",{"$f":"+'ESCRIBANO-A-S'!$C$6","v":0},{"$f":"+'ESCRIBANO-A-S'!C79:E79","v":"00:00:00"},{"$f":"+'ESCRIBANO-A-S'!$C$6","v":0},{"$f":"+'ESCRIBANO-A-S'!$F$6","v":0},"LIBRO RUBRICADO",{"$f":"+'ESCRIBANO-A-S'!B33","v":0},{"$f":"+'ESCRIBANO-A-S'!C33","v":0},{"$f":"+'ESCRIBANO-A-S'!D33","v":"ELEGIR"},{"$f":"+'ESCRIBANO-A-S'!E33","v":0},{"$f":"+'ESCRIBANO-A-S'!F33","v":0},{"$f":"+'ESCRIBANO-A-S'!G33","v":0},{"$f":"+'ESCRIBANO-A-S'!H33","v":0}]
[0,"RU",{"$f":"+'ESCRIBANO-A-S'!$C$6","v":0},{"$f":"+'ESCRIBANO-A-S'!C80:E80","v":"00:00:00"},{"$f":"+'ESCRIBANO-A-S'!$C$6","v":0},{"$f":"+'ESCRIBANO-A-S'!$F$6","v":0},"LIBRO RUBRICADO",{"$f":"+'ESCRIBANO-A-S'!B34","v":0},{"$f":"+'ESCRIBANO-A-S'!C34","v":0},{"$f":"+'ESCRIBANO-A-S'!D34","v":"ELEGIR"},{"$f":"+'ESCRIBANO-A-S'!E34","v":0},{"$f":"+'ESCRIBANO-A-S'!F34","v":0},{"$f":"+'ESCRIBANO-A-S'!G34","v":0},{"$f":"+'ESCRIBANO-A-S'!H34","v":0}]
[0,"RU",{"$f":"+'ESCRIBANO-A-S'!$C$6","v":0},{"$f":"+'ESCRIBANO-A-S'!C81:E81","v":"00:00:00"},{"$f":"+'ESCRIBANO-A-S'!$C$6","v":0},{"$f":"+'ESCRIBANO-A-S'!$F$6","v":0},"LIBRO RUBRICADO",{"$f":"+'ESCRIBANO-A-S'!B35","v":0},{"$f":"+'ESCRIBANO-A-S'!C35","v":0},{"$f":"+'ESCRIBANO-A-S'!D35","v":"ELEGIR"},{"$f":"+'ESCRIBANO-A-S'!E35","v":0},{"$f":"+'ESCRIBANO-A-S'!F35","v":0},{"$f":"+'ESCRIBANO-A-S'!G35","v":0},{"$f":"+'ESCRIBANO-A-S'!H35","v":0}]
[0,"RU",{"$f":"+'ESCRIBANO-A-S'!$C$6","v":0},{"$f":"+'ESCRIBANO-A-S'!C82:E82","v":"00:00:00"},{"$f":"+'ESCRIBANO-A-S'!$C$6","v":0},{"$f":"+'ESCRIBANO-A-S'!$F$6","v":0},"LIBRO RUBRICADO",{"$f":"+'ESCRIBANO-A-S'!B36","v":0},{"$f":"+'ESCRIBANO-A-S'!C36","v":0},{"$f":"+'ESCRIBANO-A-S'!D36","v":"ELEGIR"},{"$f":"+'ESCRIBANO-A-S'!E36","v":0},{"$f":"+'ESCRIBANO-A-S'!F36","v":0},{"$f":"+'ESCRIBANO-A-S'!G36","v":0},{"$f":"+'ESCRIBANO-A-S'!H36","v":0}]
[0,"RU",{"$f":"+'ESCRIBANO-A-S'!$C$6","v":0},{"$f":"+'ESCRIBANO-A-S'!C83:E83","v":"00:00:00"},{"$f":"+'ESCRIBANO-A-S'!$C$6","v":0},{"$f":"+'ESCRIBANO-A-S'!$F$6","v":0},"LIBRO RUBRICADO",{"$f":"+'ESCRIBANO-A-S'!B37","v":0},{"$f":"+'ESCRIBANO-A-S'!C37","v":0},{"$f":"+'ESCRIBANO-A-S'!D37","v":"ELEGIR"},{"$f":"+'ESCRIBANO-A-S'!E37","v":0},{"$f":"+'ESCRIBANO-A-S'!F37","v":0},{"$f":"+'ESCRIBANO-A-S'!G37","v":0},{"$f":"+'ESCRIBANO-A-S'!H37","v":0}]
[0,"RU",{"$f":"+'ESCRIBANO-A-S'!$C$6","v":0},{"$f":"+'ESCRIBANO-A-S'!C84:E84","v":"00:00:00"},{"$f":"+'ESCRIBANO-A-S'!$C$6","v":0},{"$f":"+'ESCRIBANO-A-S'!$F$6","v":0},"LIBRO RUBRICADO",{"$f":"+'ESCRIBANO-A-S'!B38","v":0},{"$f":"+'ESCRIBANO-A-S'!C38","v":0},{"$f":"+'ESCRIBANO-A-S'!D38","v":"ELEGIR"},{"$f":"+'ESCRIBANO-A-S'!E38","v":0},{"$f":"+'ESCRIBANO-A-S'!F38","v":0},{"$f":"+'ESCRIBANO-A-S'!G38","v":0},{"$f":"+'ESCRIBANO-A-S'!H38","v":0}]
[0,"RU",{"$f":"+'ESCRIBANO-A-S'!$C$6","v":0},{"$f":"+'ESCRIBANO-A-S'!C85:E85","v":"00:00:00"},{"$f":"+'ESCRIBANO-A-S'!$C$6","v":0},{"$f":"+'ESCRIBANO-A-S'!$F$6","v":0},"LIBRO RUBRICADO",{"$f":"+'ESCRIBANO-A-S'!B39","v":0},{"$f":"+'ESCRIBANO-A-S'!C39","v":0},{"$f":"+'ESCRIBANO-A-S'!D39","v":"ELEGIR"},{"$f":"+'ESCRIBANO-A-S'!E39","v":0},{"$f":"+'ESCRIBANO-A-S'!F39","v":0},{"$f":"+'ESCRIBANO-A-S'!G39","v":0},{"$f":"+'ESCRIBANO-A-S'!H39","v":0}]
[0,"RU",{"$f":"+'ESCRIBANO-A-S'!$C$6","v":0},{"$f":"+'ESCRIBANO-A-S'!C86:E86","v":"00:00:00"},{"$f":"+'ESCRIBANO-A-S'!$C$6","v":0},{"$f":"+'ESCRIBANO-A-S'!$F$6","v":0},"LIBRO RUBRICADO",{"$f":"+'ESCRIBANO-A-S'!B40","v":0},{"$f":"+'ESCRIBANO-A-S'!C40","v":0},{"$f":"+'ESCRIBANO-A-S'!D40","v":"ELEGIR"},{"$f":"+'ESCRIBANO-A-S'!E40","v":0},{"$f":"+'ESCRIBANO-A-S'!F40","v":0},{"$f":"+'ESCRIBANO-A-S'!G40","v":0},{"$f":"+'ESCRIBANO-A-S'!H40","v":0}]
[0,"RU",{"$f":"+'ESCRIBANO-A-S'!$C$6","v":0},{"$f":"+'ESCRIBANO-A-S'!C87:E87","v":"00:00:00"},{"$f":"+'ESCRIBANO-A-S'!$C$6","v":0},{"$f":"+'ESCRIBANO-A-S'!$F$6","v":0},"LIBRO RUBRICADO",{"$f":"+'ESCRIBANO-A-S'!B41","v":0},{"$f":"+'ESCRIBANO-A-S'!C41","v":0},{"$f":"+'ESCRIBANO-A-S'!D41","v":"ELEGIR"},{"$f":"+'ESCRIBANO-A-S'!E41","v":0},{"$f":"+'ESCRIBANO-A-S'!F41","v":0},{"$f":"+'ESCRIBANO-A-S'!G41","v":0},{"$f":"+'ESCRIBANO-A-S'!H41","v":0}]
[0,"RU",{"$f":"+'ESCRIBANO-A-S'!$C$6","v":0},{"$f":"+'ESCRIBANO-A-S'!C88:E88","v":"00:00:00"},{"$f":"+'ESCRIBANO-A-S'!$C$6","v":0},{"$f":"+'ESCRIBANO-A-S'!$F$6","v":0},"LIBRO RUBRICADO",{"$f":"+'ESCRIBANO-A-S'!B45","v":0},{"$f":"+'ESCRIBANO-A-S'!C45","v":0},{"$f":"+'ESCRIBANO-A-S'!D45","v":"ELEGIR"},{"$f":"+'ESCRIBANO-A-S'!E45","v":0},{"$f":"+'ESCRIBANO-A-S'!F45","v":0},{"$f":"+'ESCRIBANO-A-S'!G45","v":0},{"$f":"+'ESCRIBANO-A-S'!H45","v":0}]
[0,"RU",{"$f":"+'ESCRIBANO-A-S'!$C$6","v":0},{"$f":"+'ESCRIBANO-A-S'!C89:E89","v":"00:00:00"},{"$f":"+'ESCRIBANO-A-S'!$C$6","v":0},{"$f":"+'ESCRIBANO-A-S'!$F$6","v":0},"LIBRO RUBRICADO",{"$f":"+'ESCRIBANO-A-S'!B46","v":0},{"$f":"+'ESCRIBANO-A-S'!C46","v":0},{"$f":"+'ESCRIBANO-A-S'!D46","v":"ELEGIR"},{"$f":"+'ESCRIBANO-A-S'!E46","v":0},{"$f":"+'ESCRIBANO-A-S'!F46","v":0},{"$f":"+'ESCRIBANO-A-S'!G46","v":0},{"$f":"+'ESCRIBANO-A-S'!H46","v":0}]
[0,"RU",{"$f":"+'ESCRIBANO-A-S'!$C$6","v":0},{"$f":"+'ESCRIBANO-A-S'!C90:E90","v":"00:00:00"},{"$f":"+'ESCRIBANO-A-S'!$C$6","v":0},{"$f":"+'ESCRIBANO-A-S'!$F$6","v":0},"LIBRO RUBRICADO",{"$f":"+'ESCRIBANO-A-S'!B47","v":0},{"$f":"+'ESCRIBANO-A-S'!C47","v":0},{"$f":"+'ESCRIBANO-A-S'!D47","v":"ELEGIR"},{"$f":"+'ESCRIBANO-A-S'!E47","v":0},{"$f":"+'ESCRIBANO-A-S'!F47","v":0},{"$f":"+'ESCRIBANO-A-S'!G47","v":0},{"$f":"+'ESCRIBANO-A-S'!H47","v":0}]
[0,"RU",{"$f":"+'ESCRIBANO-A-S'!$C$6","v":0},{"$f":"+'ESCRIBANO-A-S'!C91:E91","v":"00:00:00"},{"$f":"+'ESCRIBANO-A-S'!$C$6","v":0},{"$f":"+'ESCRIBANO-A-S'!$F$6","v":0},"LIBRO RUBRICADO",{"$f":"+'ESCRIBANO-A-S'!B48","v":0},{"$f":"+'ESCRIBANO-A-S'!C48","v":0},{"$f":"+'ESCRIBANO-A-S'!D48","v":"ELEGIR"},{"$f":"+'ESCRIBANO-A-S'!E48","v":0},{"$f":"+'ESCRIBANO-A-S'!F48","v":0},{"$f":"+'ESCRIBANO-A-S'!G48","v":0},{"$f":"+'ESCRIBANO-A-S'!H48","v":0}]
[0,"RU",{"$f":"+'ESCRIBANO-A-S'!$C$6","v":0},{"$f":"+'ESCRIBANO-A-S'!C92:E92","v":"00:00:00"},{"$f":"+'ESCRIBANO-A-S'!$C$6","v":0},{"$f":"+'ESCRIBANO-A-S'!$F$6","v":0},"LIBRO RUBRICADO",{"$f":"+'ESCRIBANO-A-S'!B49","v":0},{"$f":"+'ESCRIBANO-A-S'!C49","v":0},{"$f":"+'ESCRIBANO-A-S'!D49","v":"ELEGIR"},{"$f":"+'ESCRIBANO-A-S'!E49","v":0},{"$f":"+'ESCRIBANO-A-S'!F49","v":0},{"$f":"+'ESCRIBANO-A-S'!G49","v":0},{"$f":"+'ESCRIBANO-A-S'!H49","v":0}]
[0,"RU",{"$f":"+'ESCRIBANO-A-S'!$C$6","v":0},{"$f":"+'ESCRIBANO-A-S'!C93:E93","v":"00:00:00"},{"$f":"+'ESCRIBANO-A-S'!$C$6","v":0},{"$f":"+'ESCRIBANO-A-S'!$F$6","v":0},"LIBRO RUBRICADO",{"$f":"+'ESCRIBANO-A-S'!B50","v":0},{"$f":"+'ESCRIBANO-A-S'!C50","v":0},{"$f":"+'ESCRIBANO-A-S'!D50","v":"ELEGIR"},{"$f":"+'ESCRIBANO-A-S'!E50","v":0},{"$f":"+'ESCRIBANO-A-S'!F50","v":0},{"$f":"+'ESCRIBANO-A-S'!G50","v":0},{"$f":"+'ESCRIBANO-A-S'!H50","v":0}]
[0,"RU",{"$f":"+'ESCRIBANO-A-S'!$C$6","v":0},{"$f":"+'ESCRIBANO-A-S'!C94:E94","v":"00:00:00"},{"$f":"+'ESCRIBANO-A-S'!$C$6","v":0},{"$f":"+'ESCRIBANO-A-S'!$F$6","v":0},"LIBRO RUBRICADO",{"$f":"+'ESCRIBANO-A-S'!B51","v":0},{"$f":"+'ESCRIBANO-A-S'!C51","v":0},{"$f":"+'ESCRIBANO-A-S'!D51","v":"ELEGIR"},{"$f":"+'ESCRIBANO-A-S'!E51","v":0},{"$f":"+'ESCRIBANO-A-S'!F51","v":0},{"$f":"+'ESCRIBANO-A-S'!G51","v":0},{"$f":"+'ESCRIBANO-A-S'!H51","v":0}]
[0,"RU",{"$f":"+'ESCRIBANO-A-S'!$C$6","v":0},{"$f":"+'ESCRIBANO-A-S'!C95:E95","v":"00:00:00"},{"$f":"+'ESCRIBANO-A-S'!$C$6","v":0},{"$f":"+'ESCRIBANO-A-S'!$F$6","v":0},"LIBRO RUBRICADO",{"$f":"+'ESCRIBANO-A-S'!B52","v":0},{"$f":"+'ESCRIBANO-A-S'!C52","v":0},{"$f":"+'ESCRIBANO-A-S'!D52","v":"ELEGIR"},{"$f":"+'ESCRIBANO-A-S'!E52","v":0},{"$f":"+'ESCRIBANO-A-S'!F52","v":0},{"$f":"+'ESCRIBANO-A-S'!G52","v":0},{"$f":"+'ESCRIBANO-A-S'!H52","v":0}]
[0,"RU",{"$f":"+'ESCRIBANO-A-S'!$C$6","v":0},{"$f":"+'ESCRIBANO-A-S'!C96:E96","v":"00:00:00"},{"$f":"+'ESCRIBANO-A-S'!$C$6","v":0},{"$f":"+'ESCRIBANO-A-S'!$F$6","v":0},"LIBRO RUBRICADO",{"$f":"+'ESCRIBANO-A-S'!B53","v":0},{"$f":"+'ESCRIBANO-A-S'!C53","v":0},{"$f":"+'ESCRIBANO-A-S'!D53","v":"ELEGIR"},{"$f":"+'ESCRIBANO-A-S'!E53","v":0},{"$f":"+'ESCRIBANO-A-S'!F53","v":0},{"$f":"+'ESCRIBANO-A-S'!G53","v":0},{"$f":"+'ESCRIBANO-A-S'!H53","v":0}]
[0,"RU",{"$f":"+'ESCRIBANO-A-S'!$C$6","v":0},{"$f":"+'ESCRIBANO-A-S'!C97:E97","v":"00:00:00"},{"$f":"+'ESCRIBANO-A-S'!$C$6","v":0},{"$f":"+'ESCRIBANO-A-S'!$F$6","v":0},"LIBRO RUBRICADO",{"$f":"+'ESCRIBANO-A-S'!B54","v":0},{"$f":"+'ESCRIBANO-A-S'!C54","v":0},{"$f":"+'ESCRIBANO-A-S'!D54","v":"ELEGIR"},{"$f":"+'ESCRIBANO-A-S'!E54","v":0},{"$f":"+'ESCRIBANO-A-S'!F54","v":0},{"$f":"+'ESCRIBANO-A-S'!G54","v":0},{"$f":"+'ESCRIBANO-A-S'!H54","v":0}]
[0,"RU",{"$f":"+'ESCRIBANO-A-S'!$C$6","v":0},{"$f":"+'ESCRIBANO-A-S'!C98:E98","v":"00:00:00"},{"$f":"+'ESCRIBANO-A-S'!$C$6","v":0},{"$f":"+'ESCRIBANO-A-S'!$F$6","v":0},"LIBRO RUBRICADO",{"$f":"+'ESCRIBANO-A-S'!B55","v":0},{"$f":"+'ESCRIBANO-A-S'!C55","v":0},{"$f":"+'ESCRIBANO-A-S'!D55","v":"ELEGIR"},{"$f":"+'ESCRIBANO-A-S'!E55","v":0},{"$f":"+'ESCRIBANO-A-S'!F55","v":0},{"$f":"+'ESCRIBANO-A-S'!G55","v":0},{"$f":"+'ESCRIBANO-A-S'!H55","v":0}]
[0,"RU",{"$f":"+'ESCRIBANO-A-S'!$C$6","v":0},{"$f":"+'ESCRIBANO-A-S'!C99:E99","v":"00:00:00"},{"$f":"+'ESCRIBANO-A-S'!$C$6","v":0},{"$f":"+'ESCRIBANO-A-S'!$F$6","v":0},"LIBRO RUBRICADO",{"$f":"+'ESCRIBANO-A-S'!B56","v":0},{"$f":"+'ESCRIBANO-A-S'!C56","v":0},{"$f":"+'ESCRIBANO-A-S'!D56","v":"ELEGIR"},{"$f":"+'ESCRIBANO-A-S'!E56","v":0},{"$f":"+'ESCRIBANO-A-S'!F56","v":0},{"$f":"+'ESCRIBANO-A-S'!G56","v":0},{"$f":"+'ESCRIBANO-A-S'!H56","v":0}]
[0,"RU",{"$f":"+'ESCRIBANO-A-S'!$C$6","v":0},{"$f":"+'ESCRIBANO-A-S'!C100:E100","v":"00:00:00"},{"$f":"+'ESCRIBANO-A-S'!$C$6","v":0},{"$f":"+'ESCRIBANO-A-S'!$F$6","v":0},"LIBRO RUBRICADO",{"$f":"+'ESCRIBANO-A-S'!B57","v":0},{"$f":"+'ESCRIBANO-A-S'!C57","v":0},{"$f":"+'ESCRIBANO-A-S'!D57","v":"ELEGIR"},{"$f":"+'ESCRIBANO-A-S'!E57","v":0},{"$f":"+'ESCRIBANO-A-S'!F57","v":0},{"$f":"+'ESCRIBANO-A-S'!G57","v":0},{"$f":"+'ESCRIBANO-A-S'!H57","v":0}]
[0,"RU",{"$f":"+'ESCRIBANO-A-S'!$C$6","v":0},{"$f":"+'ESCRIBANO-A-S'!C101:E101","v":"00:00:00"},{"$f":"+'ESCRIBANO-A-S'!$C$6","v":0},{"$f":"+'ESCRIBANO-A-S'!$F$6","v":0},"LIBRO RUBRICADO",{"$f":"+'ESCRIBANO-A-S'!B58","v":0},{"$f":"+'ESCRIBANO-A-S'!C58","v":0},{"$f":"+'ESCRIBANO-A-S'!D58","v":"ELEGIR"},{"$f":"+'ESCRIBANO-A-S'!E58","v":0},{"$f":"+'ESCRIBANO-A-S'!F58","v":0},{"$f":"+'ESCRIBANO-A-S'!G58","v":0},{"$f":"+'ESCRIBANO-A-S'!H58","v":0}]
[0,"RU",{"$f":"+'ESCRIBANO-A-S'!$C$6","v":0},{"$f":"+'ESCRIBANO-A-S'!C102:E102","v":"00:00:00"},{"$f":"+'ESCRIBANO-A-S'!$C$6","v":0},{"$f":"+'ESCRIBANO-A-S'!$F$6","v":0},"LIBRO RUBRICADO",{"$f":"+'ESCRIBANO-A-S'!B59","v":0},{"$f":"+'ESCRIBANO-A-S'!C59","v":0},{"$f":"+'ESCRIBANO-A-S'!D59","v":"ELEGIR"},{"$f":"+'ESCRIBANO-A-S'!E59","v":0},{"$f":"+'ESCRIBANO-A-S'!F59","v":0},{"$f":"+'ESCRIBANO-A-S'!G59","v":0},{"$f":"+'ESCRIBANO-A-S'!H59","v":0}]
[0,"RU",{"$f":"+'ESCRIBANO-A-S'!$C$6","v":0},{"$f":"+'ESCRIBANO-A-S'!C103:E103","v":"00:00:00"},{"$f":"+'ESCRIBANO-A-S'!$C$6","v":0},{"$f":"+'ESCRIBANO-A-S'!$F$6","v":0},"LIBRO RUBRICADO",{"$f":"+'ESCRIBANO-A-S'!B60","v":0},{"$f":"+'ESCRIBANO-A-S'!C60","v":0},{"$f":"+'ESCRIBANO-A-S'!D60","v":"ELEGIR"},{"$f":"+'ESCRIBANO-A-S'!E60","v":0},{"$f":"+'ESCRIBANO-A-S'!F60","v":0},{"$f":"+'ESCRIBANO-A-S'!G60","v":0},{"$f":"+'ESCRIBANO-A-S'!H60","v":0}]
[0,"RU",{"$f":"+'ESCRIBANO-A-S'!$C$6","v":0},{"$f":"+'ESCRIBANO-A-S'!C104:E104","v":"00:00:00"},{"$f":"+'ESCRIBANO-A-S'!$C$6","v":0},{"$f":"+'ESCRIBANO-A-S'!$F$6","v":0},"LIBRO RUBRICADO",{"$f":"+'ESCRIBANO-A-S'!B61","v":0},{"$f":"+'ESCRIBANO-A-S'!C61","v":0},{"$f":"+'ESCRIBANO-A-S'!D61","v":"ELEGIR"},{"$f":"+'ESCRIBANO-A-S'!E61","v":0},{"$f":"+'ESCRIBANO-A-S'!F61","v":0},{"$f":"+'ESCRIBANO-A-S'!G61","v":0},{"$f":"+'ESCRIBANO-A-S'!H61","v":0}]
[0,"RU",{"$f":"+'ESCRIBANO-A-S'!$C$6","v":0},{"$f":"+'ESCRIBANO-A-S'!C105:E105","v":"00:00:00"},{"$f":"+'ESCRIBANO-A-S'!$C$6","v":0},{"$f":"+'ESCRIBANO-A-S'!$F$6","v":0},"LIBRO RUBRICADO",{"$f":"+'ESCRIBANO-A-S'!B62","v":0},{"$f":"+'ESCRIBANO-A-S'!C62","v":0},{"$f":"+'ESCRIBANO-A-S'!D62","v":"ELEGIR"},{"$f":"+'ESCRIBANO-A-S'!E62","v":0},{"$f":"+'ESCRIBANO-A-S'!F62","v":0},{"$f":"+'ESCRIBANO-A-S'!G62","v":0},{"$f":"+'ESCRIBANO-A-S'!H62","v":0}]
[1,"RU",{"$f":"'ABOGADO-A-S APODERADO-A-S'!$C$6","v":0},{"$f":"+'ABOGADO-A-S APODERADO-A-S'!C106:E106","v":"00:00:00"},{"$f":"+'ABOGADO-A-S APODERADO-A-S'!$C$6","v":0},{"$f":"+'ABOGADO-A-S APODERADO-A-S'!$F$6","v":0},"LIBRO RUBRICADO","NOMBRE LIBRO","NRO. DEL LIBRO","ENCUADERNADO -E- / MÓVIL -M-","1ER FOLIO DEL LIBRO","ÚLTIMO FOLIO DEL LIBRO","NRO. EXPTE.","FOJAS"]
[0,"RU",{"$f":"+'ABOGADO-A-S APODERADO-A-S'!$C$6","v":0},{"$f":"+'ABOGADO-A-S APODERADO-A-S'!C107:E107","v":"00:00:00"},{"$f":"+'ABOGADO-A-S APODERADO-A-S'!$C$6","v":0},{"$f":"+'ABOGADO-A-S APODERADO-A-S'!$F$6","v":0},"LIBRO RUBRICADO",{"$f":"+'ABOGADO-A-S APODERADO-A-S'!B22","v":0},{"$f":"+'ABOGADO-A-S APODERADO-A-S'!C22","v":0},{"$f":"+'ABOGADO-A-S APODERADO-A-S'!D22","v":"ELEGIR"},{"$f":"+'ABOGADO-A-S APODERADO-A-S'!E22","v":0},{"$f":"+'ABOGADO-A-S APODERADO-A-S'!F22","v":0},{"$f":"+'ABOGADO-A-S APODERADO-A-S'!G61","v":0},{"$f":"+'ABOGADO-A-S APODERADO-A-S'!H61","v":0}]
[0,"RU",{"$f":"+'ABOGADO-A-S APODERADO-A-S'!$C$6","v":0},{"$f":"+'ABOGADO-A-S APODERADO-A-S'!C108:E108","v":"00:00:00"},{"$f":"+'ABOGADO-A-S APODERADO-A-S'!$C$6","v":0},{"$f":"+'ABOGADO-A-S APODERADO-A-S'!$F$6","v":0},"LIBRO RUBRICADO",{"$f":"+'ABOGADO-A-S APODERADO-A-S'!B23","v":0},{"$f":"+'ABOGADO-A-S APODERADO-A-S'!C23","v":0},{"$f":"+'ABOGADO-A-S APODERADO-A-S'!D23","v":"ELEGIR"},{"$f":"+'ABOGADO-A-S APODERADO-A-S'!E23","v":0},{"$f":"+'ABOGADO-A-S APODERADO-A-S'!F23","v":0},{"$f":"+'ABOGADO-A-S APODERADO-A-S'!G62","v":0},{"$f":"+'ABOGADO-A-S APODERADO-A-S'!H62","v":0}]
[0,"RU",{"$f":"+'ABOGADO-A-S APODERADO-A-S'!$C$6","v":0},{"$f":"+'ABOGADO-A-S APODERADO-A-S'!C109:E109","v":"00:00:00"},{"$f":"+'ABOGADO-A-S APODERADO-A-S'!$C$6","v":0},{"$f":"+'ABOGADO-A-S APODERADO-A-S'!$F$6","v":0},"LIBRO RUBRICADO",{"$f":"+'ABOGADO-A-S APODERADO-A-S'!B24","v":0},{"$f":"+'ABOGADO-A-S APODERADO-A-S'!C24","v":0},{"$f":"+'ABOGADO-A-S APODERADO-A-S'!D24","v":"ELEGIR"},{"$f":"+'ABOGADO-A-S APODERADO-A-S'!E24","v":0},{"$f":"+'ABOGADO-A-S APODERADO-A-S'!F24","v":0},{"$f":"+'ABOGADO-A-S APODERADO-A-S'!G63","v":0},{"$f":"+'ABOGADO-A-S APODERADO-A-S'!H63","v":0}]
[0,"RU",{"$f":"+'ABOGADO-A-S APODERADO-A-S'!$C$6","v":0},{"$f":"+'ABOGADO-A-S APODERADO-A-S'!C110:E110","v":"00:00:00"},{"$f":"+'ABOGADO-A-S APODERADO-A-S'!$C$6","v":0},{"$f":"+'ABOGADO-A-S APODERADO-A-S'!$F$6","v":0},"LIBRO RUBRICADO",{"$f":"+'ABOGADO-A-S APODERADO-A-S'!B25","v":0},{"$f":"+'ABOGADO-A-S APODERADO-A-S'!C25","v":0},{"$f":"+'ABOGADO-A-S APODERADO-A-S'!D25","v":"ELEGIR"},{"$f":"+'ABOGADO-A-S APODERADO-A-S'!E25","v":0},{"$f":"+'ABOGADO-A-S APODERADO-A-S'!F25","v":0},{"$f":"+'ABOGADO-A-S APODERADO-A-S'!G64","v":0},{"$f":"+'ABOGADO-A-S APODERADO-A-S'!H64","v":0}]
[0,"RU",{"$f":"+'ABOGADO-A-S APODERADO-A-S'!$C$6","v":0},{"$f":"+'ABOGADO-A-S APODERADO-A-S'!C111:E111","v":"00:00:00"},{"$f":"+'ABOGADO-A-S APODERADO-A-S'!$C$6","v":0},{"$f":"+'ABOGADO-A-S APODERADO-A-S'!$F$6","v":0},"LIBRO RUBRICADO",{"$f":"+'ABOGADO-A-S APODERADO-A-S'!B26","v":0},{"$f":"+'ABOGADO-A-S APODERADO-A-S'!C26","v":0},{"$f":"+'ABOGADO-A-S APODERADO-A-S'!D26","v":"ELEGIR"},{"$f":"+'ABOGADO-A-S APODERADO-A-S'!E26","v":0},{"$f":"+'ABOGADO-A-S APODERADO-A-S'!F26","v":0},{"$f":"+'ABOGADO-A-S APODERADO-A-S'!G66","v":0},{"$f":"+'ABOGADO-A-S APODERADO-A-S'!H66","v":0}]
[0,"RU",{"$f":"+'ABOGADO-A-S APODERADO-A-S'!$C$6","v":0},{"$f":"+'ABOGADO-A-S APODERADO-A-S'!C112:E112","v":"00:00:00"},{"$f":"+'ABOGADO-A-S APODERADO-A-S'!$C$6","v":0},{"$f":"+'ABOGADO-A-S APODERADO-A-S'!$F$6","v":0},"LIBRO RUBRICADO",{"$f":"+'ABOGADO-A-S APODERADO-A-S'!B27","v":0},{"$f":"+'ABOGADO-A-S APODERADO-A-S'!C27","v":0},{"$f":"+'ABOGADO-A-S APODERADO-A-S'!D27","v":"ELEGIR"},{"$f":"+'ABOGADO-A-S APODERADO-A-S'!E27","v":0},{"$f":"+'ABOGADO-A-S APODERADO-A-S'!F27","v":0},{"$f":"+'ABOGADO-A-S APODERADO-A-S'!G67","v":0},{"$f":"+'ABOGADO-A-S APODERADO-A-S'!H67","v":0}]
[0,"RU",{"$f":"+'ABOGADO-A-S APODERADO-A-S'!$C$6","v":0},{"$f":"+'ABOGADO-A-S APODERADO-A-S'!C113:E113","v":"00:00:00"},{"$f":"+'ABOGADO-A-S APODERADO-A-S'!$C$6","v":0},{"$f":"+'ABOGADO-A-S APODERADO-A-S'!$F$6","v":0},"LIBRO RUBRICADO",{"$f":"+'ABOGADO-A-S APODERADO-A-S'!B28","v":0},{"$f":"+'ABOGADO-A-S APODERADO-A-S'!C28","v":0},{"$f":"+'ABOGADO-A-S APODERADO-A-S'!D28","v":"ELEGIR"},{"$f":"+'ABOGADO-A-S APODERADO-A-S'!E28","v":0},{"$f":"+'ABOGADO-A-S APODERADO-A-S'!F28","v":0},{"$f":"+'ABOGADO-A-S APODERADO-A-S'!G68","v":0},{"$f":"+'ABOGADO-A-S APODERADO-A-S'!H68","v":0}]
[0,"RU",{"$f":"+'ABOGADO-A-S APODERADO-A-S'!$C$6","v":0},{"$f":"+'ABOGADO-A-S APODERADO-A-S'!C114:E114","v":"00:00:00"},{"$f":"+'ABOGADO-A-S APODERADO-A-S'!$C$6","v":0},{"$f":"+'ABOGADO-A-S APODERADO-A-S'!$F$6","v":0},"LIBRO RUBRICADO",{"$f":"+'ABOGADO-A-S APODERADO-A-S'!B29","v":0},{"$f":"+'ABOGADO-A-S APODERADO-A-S'!C29","v":0},{"$f":"+'ABOGADO-A-S APODERADO-A-S'!D29","v":"ELEGIR"},{"$f":"+'ABOGADO-A-S APODERADO-A-S'!E29","v":0},{"$f":"+'ABOGADO-A-S APODERADO-A-S'!F29","v":0},{"$f":"+'ABOGADO-A-S APODERADO-A-S'!G69","v":0},{"$f":"+'ABOGADO-A-S APODERADO-A-S'!H69","v":0}]
[0,"RU",{"$f":"+'ABOGADO-A-S APODERADO-A-S'!$C$6","v":0},{"$f":"+'ABOGADO-A-S APODERADO-A-S'!C115:E115","v":"00:00:00"},{"$f":"+'ABOGADO-A-S APODERADO-A-S'!$C$6","v":0},{"$f":"+'ABOGADO-A-S APODERADO-A-S'!$F$6","v":0},"LIBRO RUBRICADO",{"$f":"+'ABOGADO-A-S APODERADO-A-S'!B30","v":0},{"$f":"+'ABOGADO-A-S APODERADO-A-S'!C30","v":0},{"$f":"+'ABOGADO-A-S APODERADO-A-S'!D30","v":"ELEGIR"},{"$f":"+'ABOGADO-A-S APODERADO-A-S'!E30","v":0},{"$f":"+'ABOGADO-A-S APODERADO-A-S'!F30","v":0},{"$f":"+'ABOGADO-A-S APODERADO-A-S'!G70","v":0},{"$f":"+'ABOGADO-A-S APODERADO-A-S'!H70","v":0}]
[0,"RU",{"$f":"+'ABOGADO-A-S APODERADO-A-S'!$C$6","v":0},{"$f":"+'ABOGADO-A-S APODERADO-A-S'!C116:E116","v":"00:00:00"},{"$f":"+'ABOGADO-A-S APODERADO-A-S'!$C$6","v":0},{"$f":"+'ABOGADO-A-S APODERADO-A-S'!$F$6","v":0},"LIBRO RUBRICADO",{"$f":"+'ABOGADO-A-S APODERADO-A-S'!B31","v":0},{"$f":"+'ABOGADO-A-S APODERADO-A-S'!C31","v":0},{"$f":"+'ABOGADO-A-S APODERADO-A-S'!D31","v":"ELEGIR"},{"$f":"+'ABOGADO-A-S APODERADO-A-S'!E31","v":0},{"$f":"+'ABOGADO-A-S APODERADO-A-S'!F31","v":0},{"$f":"+'ABOGADO-A-S APODERADO-A-S'!G71","v":0},{"$f":"+'ABOGADO-A-S APODERADO-A-S'!H71","v":0}]
[0,"RU",{"$f":"+'ABOGADO-A-S APODERADO-A-S'!$C$6","v":0},{"$f":"+'ABOGADO-A-S APODERADO-A-S'!C117:E117","v":"00:00:00"},{"$f":"+'ABOGADO-A-S APODERADO-A-S'!$C$6","v":0},{"$f":"+'ABOGADO-A-S APODERADO-A-S'!$F$6","v":0},"LIBRO RUBRICADO",{"$f":"+'ABOGADO-A-S APODERADO-A-S'!B32","v":0},{"$f":"+'ABOGADO-A-S APODERADO-A-S'!C32","v":0},{"$f":"+'ABOGADO-A-S APODERADO-A-S'!D32","v":"ELEGIR"},{"$f":"+'ABOGADO-A-S APODERADO-A-S'!E32","v":0},{"$f":"+'ABOGADO-A-S APODERADO-A-S'!F32","v":0},{"$f":"+'ABOGADO-A-S APODERADO-A-S'!G72","v":0},{"$f":"+'ABOGADO-A-S APODERADO-A-S'!H72","v":0}]
[0,"RU",{"$f":"+'ABOGADO-A-S APODERADO-A-S'!$C$6","v":0},{"$f":"+'ABOGADO-A-S APODERADO-A-S'!C118:E118","v":"00:00:00"},{"$f":"+'ABOGADO-A-S APODERADO-A-S'!$C$6","v":0},{"$f":"+'ABOGADO-A-S APODERADO-A-S'!$F$6","v":0},"LIBRO RUBRICADO",{"$f":"+'ABOGADO-A-S APODERADO-A-S'!B33","v":0},{"$f":"+'ABOGADO-A-S APODERADO-A-S'!C33","v":0},{"$f":"+'ABOGADO-A-S APODERADO-A-S'!D33","v":"ELEGIR"},{"$f":"+'ABOGADO-A-S APODERADO-A-S'!E33","v":0},{"$f":"+'ABOGADO-A-S APODERADO-A-S'!F33","v":0},{"$f":"+'ABOGADO-A-S APODERADO-A-S'!G73","v":0},{"$f":"+'ABOGADO-A-S APODERADO-A-S'!H73","v":0}]
[0,"RU",{"$f":"+'ABOGADO-A-S APODERADO-A-S'!$C$6","v":0},{"$f":"+'ABOGADO-A-S APODERADO-A-S'!C119:E119","v":"00:00:00"},{"$f":"+'ABOGADO-A-S APODERADO-A-S'!$C$6","v":0},{"$f":"+'ABOGADO-A-S APODERADO-A-S'!$F$6","v":0},"LIBRO RUBRICADO",{"$f":"+'ABOGADO-A-S APODERADO-A-S'!B34","v":0},{"$f":"+'ABOGADO-A-S APODERADO-A-S'!C34","v":0},{"$f":"+'ABOGADO-A-S APODERADO-A-S'!D34","v":"ELEGIR"},{"$f":"+'ABOGADO-A-S APODERADO-A-S'!E34","v":0},{"$f":"+'ABOGADO-A-S APODERADO-A-S'!F34","v":0},{"$f":"+'ABOGADO-A-S APODERADO-A-S'!G74","v":0},{"$f":"+'ABOGADO-A-S APODERADO-A-S'!H74","v":0}]
[0,"RU",{"$f":"+'ABOGADO-A-S APODERADO-A-S'!$C$6","v":0},{"$f":"+'ABOGADO-A-S APODERADO-A-S'!C120:E120","v":"00:00:00"},{"$f":"+'ABOGADO-A-S APODERADO-A-S'!$C$6","v":0},{"$f":"+'ABOGADO-A-S APODERADO-A-S'!$F$6","v":0},"LIBRO RUBRICADO",{"$f":"+'ABOGADO-A-S APODERADO-A-S'!B35","v":0},{"$f":"+'ABOGADO-A-S APODERADO-A-S'!C35","v":0},{"$f":"+'ABOGADO-A-S APODERADO-A-S'!D35","v":"ELEGIR"},{"$f":"+'ABOGADO-A-S APODERADO-A-S'!E35","v":0},{"$f":"+'ABOGADO-A-S APODERADO-A-S'!F35","v":0},{"$f":"+'ABOGADO-A-S APODERADO-A-S'!G75","v":0},{"$f":"+'ABOGADO-A-S APODERADO-A-S'!H75","v":0}]
[0,"RU",{"$f":"+'ABOGADO-A-S APODERADO-A-S'!$C$6","v":0},{"$f":"+'ABOGADO-A-S APODERADO-A-S'!C121:E121","v":"00:00:00"},{"$f":"+'ABOGADO-A-S APODERADO-A-S'!$C$6","v":0},{"$f":"+'ABOGADO-A-S APODERADO-A-S'!$F$6","v":0},"LIBRO RUBRICADO",{"$f":"+'ABOGADO-A-S APODERADO-A-S'!B36","v":0},{"$f":"+'ABOGADO-A-S APODERADO-A-S'!C36","v":0},{"$f":"+'ABOGADO-A-S APODERADO-A-S'!D36","v":"ELEGIR"},{"$f":"+'ABOGADO-A-S APODERADO-A-S'!E36","v":0},{"$f":"+'ABOGADO-A-S APODERADO-A-S'!F36","v":0},{"$f":"+'ABOGADO-A-S APODERADO-A-S'!G76","v":0},{"$f":"+'ABOGADO-A-S APODERADO-A-S'!H76","v":0}]
[0,"RU",{"$f":"+'ABOGADO-A-S APODERADO-A-S'!$C$6","v":0},{"$f":"+'ABOGADO-A-S APODERADO-A-S'!C122:E122","v":"00:00:00"},{"$f":"+'ABOGADO-A-S APODERADO-A-S'!$C$6","v":0},{"$f":"+'ABOGADO-A-S APODERADO-A-S'!$F$6","v":0},"LIBRO RUBRICADO",{"$f":"+'ABOGADO-A-S APODERADO-A-S'!B37","v":0},{"$f":"+'ABOGADO-A-S APODERADO-A-S'!C37","v":0},{"$f":"+'ABOGADO-A-S APODERADO-A-S'!D37","v":"ELEGIR"},{"$f":"+'ABOGADO-A-S APODERADO-A-S'!E37","v":0},{"$f":"+'ABOGADO-A-S APODERADO-A-S'!F37","v":0},{"$f":"+'ABOGADO-A-S APODERADO-A-S'!G77","v":0},{"$f":"+'ABOGADO-A-S APODERADO-A-S'!H77","v":0}]
[0,"RU",{"$f":"+'ABOGADO-A-S APODERADO-A-S'!$C$6","v":0},{"$f":"+'ABOGADO-A-S APODERADO-A-S'!C123:E123","v":"00:00:00"},{"$f":"+'ABOGADO-A-S APODERADO-A-S'!$C$6","v":0},{"$f":"+'ABOGADO-A-S APODERADO-A-S'!$F$6","v":0},"LIBRO RUBRICADO",{"$f":"+'ABOGADO-A-S APODERADO-A-S'!B38","v":0},{"$f":"+'ABOGADO-A-S APODERADO-A-S'!C38","v":0},{"$f":"+'ABOGADO-A-S APODERADO-A-S'!D38","v":"ELEGIR"},{"$f":"+'ABOGADO-A-S APODERADO-A-S'!E38","v":0},{"$f":"+'ABOGADO-A-S APODERADO-A-S'!F38","v":0},{"$f":"+'ABOGADO-A-S APODERADO-A-S'!G78","v":0},{"$f":"+'ABOGADO-A-S APODERADO-A-S'!H78","v":0}]
[0,"RU",{"$f":"+'ABOGADO-A-S APODERADO-A-S'!$C$6","v":0},{"$f":"+'ABOGADO-A-S APODERADO-A-S'!C124:E124","v":"00:00:00"},{"$f":"+'ABOGADO-A-S APODERADO-A-S'!$C$6","v":0},{"$f":"+'ABOGADO-A-S APODERADO-A-S'!$F$6","v":0},"LIBRO RUBRICADO",{"$f":"+'ABOGADO-A-S APODERADO-A-S'!B39","v":0},{"$f":"+'ABOGADO-A-S APODERADO-A-S'!C39","v":0},{"$f":"+'ABOGADO-A-S APODERADO-A-S'!D39","v":"ELEGIR"},{"$f":"+'ABOGADO-A-S APODERADO-A-S'!E39","v":0},{"$f":"+'ABOGADO-A-S APODERADO-A-S'!F39","v":0},{"$f":"+'ABOGADO-A-S APODERADO-A-S'!G79","v":0},{"$f":"+'ABOGADO-A-S APODERADO-A-S'!H79","v":0}]
[0,"RU",{"$f":"+'ABOGADO-A-S APODERADO-A-S'!$C$6","v":0},{"$f":"+'ABOGADO-A-S APODERADO-A-S'!C125:E125","v":"00:00:00"},{"$f":"+'ABOGADO-A-S APODERADO-A-S'!$C$6","v":0},{"$f":"+'ABOGADO-A-S APODERADO-A-S'!$F$6","v":0},"LIBRO RUBRICADO",{"$f":"+'ABOGADO-A-S APODERADO-A-S'!B40","v":0},{"$f":"+'ABOGADO-A-S APODERADO-A-S'!C40","v":0},{"$f":"+'ABOGADO-A-S APODERADO-A-S'!D40","v":"ELEGIR"},{"$f":"+'ABOGADO-A-S APODERADO-A-S'!E40","v":0},{"$f":"+'ABOGADO-A-S APODERADO-A-S'!F40","v":0},{"$f":"+'ABOGADO-A-S APODERADO-A-S'!G80","v":0},{"$f":"+'ABOGADO-A-S APODERADO-A-S'!H80","v":0}]
[0,"RU",{"$f":"+'ABOGADO-A-S APODERADO-A-S'!$C$6","v":0},{"$f":"+'ABOGADO-A-S APODERADO-A-S'!C126:E126","v":"00:00:00"},{"$f":"+'ABOGADO-A-S APODERADO-A-S'!$C$6","v":0},{"$f":"+'ABOGADO-A-S APODERADO-A-S'!$F$6","v":0},"LIBRO RUBRICADO",{"$f":"+'ABOGADO-A-S APODERADO-A-S'!B41","v":0},{"$f":"+'ABOGADO-A-S APODERADO-A-S'!C41","v":0},{"$f":"+'ABOGADO-A-S APODERADO-A-S'!D41","v":"ELEGIR"},{"$f":"+'ABOGADO-A-S APODERADO-A-S'!E41","v":0},{"$f":"+'ABOGADO-A-S APODERADO-A-S'!F41","v":0},{"$f":"+'ABOGADO-A-S APODERADO-A-S'!G81","v":0},{"$f":"+'ABOGADO-A-S APODERADO-A-S'!H81","v":0}]
[0,"RU",{"$f":"+'ABOGADO-A-S APODERADO-A-S'!$C$6","v":0},{"$f":"+'ABOGADO-A-S APODERADO-A-S'!C127:E127","v":"00:00:00"},{"$f":"+'ABOGADO-A-S APODERADO-A-S'!$C$6","v":0},{"$f":"+'ABOGADO-A-S APODERADO-A-S'!$F$6","v":0},"LIBRO RUBRICADO",{"$f":"+'ABOGADO-A-S APODERADO-A-S'!B45","v":0},{"$f":"+'ABOGADO-A-S APODERADO-A-S'!C45","v":0},{"$f":"+'ABOGADO-A-S APODERADO-A-S'!D45","v":"ELEGIR"},{"$f":"+'ABOGADO-A-S APODERADO-A-S'!E45","v":0},{"$f":"+'ABOGADO-A-S APODERADO-A-S'!F45","v":0},{"$f":"+'ABOGADO-A-S APODERADO-A-S'!G85","v":0},{"$f":"+'ABOGADO-A-S APODERADO-A-S'!H85","v":0}]
[0,"RU",{"$f":"+'ABOGADO-A-S APODERADO-A-S'!$C$6","v":0},{"$f":"+'ABOGADO-A-S APODERADO-A-S'!C128:E128","v":"00:00:00"},{"$f":"+'ABOGADO-A-S APODERADO-A-S'!$C$6","v":0},{"$f":"+'ABOGADO-A-S APODERADO-A-S'!$F$6","v":0},"LIBRO RUBRICADO",{"$f":"+'ABOGADO-A-S APODERADO-A-S'!B46","v":0},{"$f":"+'ABOGADO-A-S APODERADO-A-S'!C46","v":0},{"$f":"+'ABOGADO-A-S APODERADO-A-S'!D46","v":"ELEGIR"},{"$f":"+'ABOGADO-A-S APODERADO-A-S'!E46","v":0},{"$f":"+'ABOGADO-A-S APODERADO-A-S'!F46","v":0},{"$f":"+'ABOGADO-A-S APODERADO-A-S'!G86","v":0},{"$f":"+'ABOGADO-A-S APODERADO-A-S'!H86","v":0}]
[0,"RU",{"$f":"+'ABOGADO-A-S APODERADO-A-S'!$C$6","v":0},{"$f":"+'ABOGADO-A-S APODERADO-A-S'!C129:E129","v":"00:00:00"},{"$f":"+'ABOGADO-A-S APODERADO-A-S'!$C$6","v":0},{"$f":"+'ABOGADO-A-S APODERADO-A-S'!$F$6","v":0},"LIBRO RUBRICADO",{"$f":"+'ABOGADO-A-S APODERADO-A-S'!B47","v":0},{"$f":"+'ABOGADO-A-S APODERADO-A-S'!C47","v":0},{"$f":"+'ABOGADO-A-S APODERADO-A-S'!D47","v":"ELEGIR"},{"$f":"+'ABOGADO-A-S APODERADO-A-S'!E47","v":0},{"$f":"+'ABOGADO-A-S APODERADO-A-S'!F47","v":0},{"$f":"+'ABOGADO-A-S APODERADO-A-S'!G87","v":0},{"$f":"+'ABOGADO-A-S APODERADO-A-S'!H87","v":0}]
[0,"RU",{"$f":"+'ABOGADO-A-S APODERADO-A-S'!$C$6","v":0},{"$f":"+'ABOGADO-A-S APODERADO-A-S'!C130:E130","v":"00:00:00"},{"$f":"+'ABOGADO-A-S APODERADO-A-S'!$C$6","v":0},{"$f":"+'ABOGADO-A-S APODERADO-A-S'!$F$6","v":0},"LIBRO RUBRICADO",{"$f":"+'ABOGADO-A-S APODERADO-A-S'!B48","v":0},{"$f":"+'ABOGADO-A-S APODERADO-A-S'!C48","v":0},{"$f":"+'ABOGADO-A-S APODERADO-A-S'!D48","v":"ELEGIR"},{"$f":"+'ABOGADO-A-S APODERADO-A-S'!E48","v":0},{"$f":"+'ABOGADO-A-S APODERADO-A-S'!F48","v":0},{"$f":"+'ABOGADO-A-S APODERADO-A-S'!G88","v":0},{"$f":"+'ABOGADO-A-S APODERADO-A-S'!H88","v":0}]
[0,"RU",{"$f":"+'ABOGADO-A-S APODERADO-A-S'!$C$6","v":0},{"$f":"+'ABOGADO-A-S APODERADO-A-S'!C131:E131","v":"00:00:00"},{"$f":"+'ABOGADO-A-S APODERADO-A-S'!$C$6","v":0},{"$f":"+'ABOGADO-A-S APODERADO-A-S'!$F$6","v":0},"LIBRO RUBRICADO",{"$f":"+'ABOGADO-A-S APODERADO-A-S'!B49","v":0},{"$f":"+'ABOGADO-A-S APODERADO-A-S'!C49","v":0},{"$f":"+'ABOGADO-A-S APODERADO-A-S'!D49","v":"ELEGIR"},{"$f":"+'ABOGADO-A-S APODERADO-A-S'!E49","v":0},{"$f":"+'ABOGADO-A-S APODERADO-A-S'!F49","v":0},{"$f":"+'ABOGADO-A-S APODERADO-A-S'!G89","v":0},{"$f":"+'ABOGADO-A-S APODERADO-A-S'!H89","v":0}]
[{"$f":"IF(H71=0,0,1)","v":0},"RU",{"$f":"+'ABOGADO-A-S APODERADO-A-S'!$C$6","v":0},{"$f":"+'ABOGADO-A-S APODERADO-A-S'!C132:E132","v":"00:00:00"},{"$f":"+'ABOGADO-A-S APODERADO-A-S'!$C$6","v":0},{"$f":"+'ABOGADO-A-S APODERADO-A-S'!$F$6","v":0},"LIBRO RUBRICADO",{"$f":"+'ABOGADO-A-S APODERADO-A-S'!B50","v":0},{"$f":"+'ABOGADO-A-S APODERADO-A-S'!C50","v":0},{"$f":"+'ABOGADO-A-S APODERADO-A-S'!D50","v":"ELEGIR"},{"$f":"+'ABOGADO-A-S APODERADO-A-S'!E50","v":0},{"$f":"+'ABOGADO-A-S APODERADO-A-S'!F50","v":0},{"$f":"+'ABOGADO-A-S APODERADO-A-S'!G90","v":0},{"$f":"+'ABOGADO-A-S APODERADO-A-S'!H90","v":0}]
[0,"RU",{"$f":"+'ABOGADO-A-S APODERADO-A-S'!$C$6","v":0},{"$f":"+'ABOGADO-A-S APODERADO-A-S'!C133:E133","v":"00:00:00"},{"$f":"+'ABOGADO-A-S APODERADO-A-S'!$C$6","v":0},{"$f":"+'ABOGADO-A-S APODERADO-A-S'!$F$6","v":0},"LIBRO RUBRICADO",{"$f":"+'ABOGADO-A-S APODERADO-A-S'!B51","v":0},{"$f":"+'ABOGADO-A-S APODERADO-A-S'!C51","v":0},{"$f":"+'ABOGADO-A-S APODERADO-A-S'!D51","v":"ELEGIR"},{"$f":"+'ABOGADO-A-S APODERADO-A-S'!E51","v":0},{"$f":"+'ABOGADO-A-S APODERADO-A-S'!F51","v":0},{"$f":"+'ABOGADO-A-S APODERADO-A-S'!G91","v":0},{"$f":"+'ABOGADO-A-S APODERADO-A-S'!H91","v":0}]
[0,"RU",{"$f":"+'ABOGADO-A-S APODERADO-A-S'!$C$6","v":0},{"$f":"+'ABOGADO-A-S APODERADO-A-S'!C134:E134","v":"00:00:00"},{"$f":"+'ABOGADO-A-S APODERADO-A-S'!$C$6","v":0},{"$f":"+'ABOGADO-A-S APODERADO-A-S'!$F$6","v":0},"LIBRO RUBRICADO",{"$f":"+'ABOGADO-A-S APODERADO-A-S'!B52","v":0},{"$f":"+'ABOGADO-A-S APODERADO-A-S'!C52","v":0},{"$f":"+'ABOGADO-A-S APODERADO-A-S'!D52","v":"ELEGIR"},{"$f":"+'ABOGADO-A-S APODERADO-A-S'!E52","v":0},{"$f":"+'ABOGADO-A-S APODERADO-A-S'!F52","v":0},{"$f":"+'ABOGADO-A-S APODERADO-A-S'!G92","v":0},{"$f":"+'ABOGADO-A-S APODERADO-A-S'!H92","v":0}]
[0,"RU",{"$f":"+'ABOGADO-A-S APODERADO-A-S'!$C$6","v":0},{"$f":"+'ABOGADO-A-S APODERADO-A-S'!C135:E135","v":"00:00:00"},{"$f":"+'ABOGADO-A-S APODERADO-A-S'!$C$6","v":0},{"$f":"+'ABOGADO-A-S APODERADO-A-S'!$F$6","v":0},"LIBRO RUBRICADO",{"$f":"+'ABOGADO-A-S APODERADO-A-S'!B53","v":0},{"$f":"+'ABOGADO-A-S APODERADO-A-S'!C53","v":0},{"$f":"+'ABOGADO-A-S APODERADO-A-S'!D53","v":"ELEGIR"},{"$f":"+'ABOGADO-A-S APODERADO-A-S'!E53","v":0},{"$f":"+'ABOGADO-A-S APODERADO-A-S'!F53","v":0},{"$f":"+'ABOGADO-A-S APODERADO-A-S'!G93","v":0},{"$f":"+'ABOGADO-A-S APODERADO-A-S'!H93","v":0}]
[0,"RU",{"$f":"+'ABOGADO-A-S APODERADO-A-S'!$C$6","v":0},{"$f":"+'ABOGADO-A-S APODERADO-A-S'!C136:E136","v":"00:00:00"},{"$f":"+'ABOGADO-A-S APODERADO-A-S'!$C$6","v":0},{"$f":"+'ABOGADO-A-S APODERADO-A-S'!$F$6","v":0},"LIBRO RUBRICADO",{"$f":"+'ABOGADO-A-S APODERADO-A-S'!B54","v":0},{"$f":"+'ABOGADO-A-S APODERADO-A-S'!C54","v":0},{"$f":"+'ABOGADO-A-S APODERADO-A-S'!D54","v":"ELEGIR"},{"$f":"+'ABOGADO-A-S APODERADO-A-S'!E54","v":0},{"$f":"+'ABOGADO-A-S APODERADO-A-S'!F54","v":0},{"$f":"+'ABOGADO-A-S APODERADO-A-S'!G94","v":0},{"$f":"+'ABOGADO-A-S APODERADO-A-S'!H94","v":0}]
[0,"RU",{"$f":"+'ABOGADO-A-S APODERADO-A-S'!$C$6","v":0},{"$f":"+'ABOGADO-A-S APODERADO-A-S'!C137:E137","v":"00:00:00"},{"$f":"+'ABOGADO-A-S APODERADO-A-S'!$C$6","v":0},{"$f":"+'ABOGADO-A-S APODERADO-A-S'!$F$6","v":0},"LIBRO RUBRICADO",{"$f":"+'ABOGADO-A-S APODERADO-A-S'!B55","v":0},{"$f":"+'ABOGADO-A-S APODERADO-A-S'!C55","v":0},{"$f":"+'ABOGADO-A-S APODERADO-A-S'!D55","v":"ELEGIR"},{"$f":"+'ABOGADO-A-S APODERADO-A-S'!E55","v":0},{"$f":"+'ABOGADO-A-S APODERADO-A-S'!F55","v":0},{"$f":"+'ABOGADO-A-S APODERADO-A-S'!G95","v":0},{"$f":"+'ABOGADO-A-S APODERADO-A-S'!H95","v":0}]
[0,"RU",{"$f":"+'ABOGADO-A-S APODERADO-A-S'!$C$6","v":0},{"$f":"+'ABOGADO-A-S APODERADO-A-S'!C138:E138","v":"00:00:00"},{"$f":"+'ABOGADO-A-S APODERADO-A-S'!$C$6","v":0},{"$f":"+'ABOGADO-A-S APODERADO-A-S'!$F$6","v":0},"LIBRO RUBRICADO",{"$f":"+'ABOGADO-A-S APODERADO-A-S'!B56","v":0},{"$f":"+'ABOGADO-A-S APODERADO-A-S'!C56","v":0},{"$f":"+'ABOGADO-A-S APODERADO-A-S'!D56","v":"ELEGIR"},{"$f":"+'ABOGADO-A-S APODERADO-A-S'!E56","v":0},{"$f":"+'ABOGADO-A-S APODERADO-A-S'!F56","v":0},{"$f":"+'ABOGADO-A-S APODERADO-A-S'!G96","v":0},{"$f":"+'ABOGADO-A-S APODERADO-A-S'!H96","v":0}]
[0,"RU",{"$f":"+'ABOGADO-A-S APODERADO-A-S'!$C$6","v":0},{"$f":"+'ABOGADO-A-S APODERADO-A-S'!C139:E139","v":"00:00:00"},{"$f":"+'ABOGADO-A-S APODERADO-A-S'!$C$6","v":0},{"$f":"+'ABOGADO-A-S APODERADO-A-S'!$F$6","v":0},"LIBRO RUBRICADO",{"$f":"+'ABOGADO-A-S APODERADO-A-S'!B57","v":0},{"$f":"+'ABOGADO-A-S APODERADO-A-S'!C57","v":0},{"$f":"+'ABOGADO-A-S APODERADO-A-S'!D57","v":"ELEGIR"},{"$f":"+'ABOGADO-A-S APODERADO-A-S'!E57","v":0},{"$f":"+'ABOGADO-A-S APODERADO-A-S'!F57","v":0},{"$f":"+'ABOGADO-A-S APODERADO-A-S'!G97","v":0},{"$f":"+'ABOGADO-A-S APODERADO-A-S'!H97","v":0}]
[0,"RU",{"$f":"+'ABOGADO-A-S APODERADO-A-S'!$C$6","v":0},{"$f":"+'ABOGADO-A-S APODERADO-A-S'!C140:E140","v":"00:00:00"},{"$f":"+'ABOGADO-A-S APODERADO-A-S'!$C$6","v":0},{"$f":"+'ABOGADO-A-S APODERADO-A-S'!$F$6","v":0},"LIBRO RUBRICADO",{"$f":"+'ABOGADO-A-S APODERADO-A-S'!B58","v":0},{"$f":"+'ABOGADO-A-S APODERADO-A-S'!C58","v":0},{"$f":"+'ABOGADO-A-S APODERADO-A-S'!D58","v":"ELEGIR"},{"$f":"+'ABOGADO-A-S APODERADO-A-S'!E58","v":0},{"$f":"+'ABOGADO-A-S APODERADO-A-S'!F58","v":0},{"$f":"+'ABOGADO-A-S APODERADO-A-S'!G98","v":0},{"$f":"+'ABOGADO-A-S APODERADO-A-S'!H98","v":0}]
[0,"RU",{"$f":"+'ABOGADO-A-S APODERADO-A-S'!$C$6","v":0},{"$f":"+'ABOGADO-A-S APODERADO-A-S'!C141:E141","v":"00:00:00"},{"$f":"+'ABOGADO-A-S APODERADO-A-S'!$C$6","v":0},{"$f":"+'ABOGADO-A-S APODERADO-A-S'!$F$6","v":0},"LIBRO RUBRICADO",{"$f":"+'ABOGADO-A-S APODERADO-A-S'!B59","v":0},{"$f":"+'ABOGADO-A-S APODERADO-A-S'!C59","v":0},{"$f":"+'ABOGADO-A-S APODERADO-A-S'!D59","v":"ELEGIR"},{"$f":"+'ABOGADO-A-S APODERADO-A-S'!E59","v":0},{"$f":"+'ABOGADO-A-S APODERADO-A-S'!F59","v":0},{"$f":"+'ABOGADO-A-S APODERADO-A-S'!G99","v":0},{"$f":"+'ABOGADO-A-S APODERADO-A-S'!H99","v":0}]
[0,"RU",{"$f":"+'ABOGADO-A-S APODERADO-A-S'!$C$6","v":0},{"$f":"+'ABOGADO-A-S APODERADO-A-S'!C142:E142","v":"00:00:00"},{"$f":"+'ABOGADO-A-S APODERADO-A-S'!$C$6","v":0},{"$f":"+'ABOGADO-A-S APODERADO-A-S'!$F$6","v":0},"LIBRO RUBRICADO",{"$f":"+'ABOGADO-A-S APODERADO-A-S'!B60","v":0},{"$f":"+'ABOGADO-A-S APODERADO-A-S'!C60","v":0},{"$f":"+'ABOGADO-A-S APODERADO-A-S'!D60","v":"ELEGIR"},{"$f":"+'ABOGADO-A-S APODERADO-A-S'!E60","v":0},{"$f":"+'ABOGADO-A-S APODERADO-A-S'!F60","v":0},{"$f":"+'ABOGADO-A-S APODERADO-A-S'!G100","v":0},{"$f":"+'ABOGADO-A-S APODERADO-A-S'!H100","v":0}]
[0,"RU",{"$f":"+'ABOGADO-A-S APODERADO-A-S'!$C$6","v":0},{"$f":"+'ABOGADO-A-S APODERADO-A-S'!C143:E143","v":"00:00:00"},{"$f":"+'ABOGADO-A-S APODERADO-A-S'!$C$6","v":0},{"$f":"+'ABOGADO-A-S APODERADO-A-S'!$F$6","v":0},"LIBRO RUBRICADO",{"$f":"+'ABOGADO-A-S APODERADO-A-S'!B61","v":0},{"$f":"+'ABOGADO-A-S APODERADO-A-S'!C61","v":0},{"$f":"+'ABOGADO-A-S APODERADO-A-S'!D61","v":"ELEGIR"},{"$f":"+'ABOGADO-A-S APODERADO-A-S'!E61","v":0},{"$f":"+'ABOGADO-A-S APODERADO-A-S'!F61","v":0},{"$f":"+'ABOGADO-A-S APODERADO-A-S'!G101","v":0},{"$f":"+'ABOGADO-A-S APODERADO-A-S'!H101","v":0}]
[0,"RU",{"$f":"+'ABOGADO-A-S APODERADO-A-S'!$C$6","v":0},{"$f":"+'ABOGADO-A-S APODERADO-A-S'!C144:E144","v":"00:00:00"},{"$f":"+'ABOGADO-A-S APODERADO-A-S'!$C$6","v":0},{"$f":"+'ABOGADO-A-S APODERADO-A-S'!$F$6","v":0},"LIBRO RUBRICADO",{"$f":"+'ABOGADO-A-S APODERADO-A-S'!B62","v":0},{"$f":"+'ABOGADO-A-S APODERADO-A-S'!C62","v":0},{"$f":"+'ABOGADO-A-S APODERADO-A-S'!D62","v":"ELEGIR"},{"$f":"+'ABOGADO-A-S APODERADO-A-S'!E62","v":0},{"$f":"+'ABOGADO-A-S APODERADO-A-S'!F62","v":0},{"$f":"+'ABOGADO-A-S APODERADO-A-S'!G102","v":0},{"$f":"+'ABOGADO-A-S APODERADO-A-S'!H102","v":0}]
[1,"RU",{"$f":"+'REPRESENTANTE LEGAL'!$C$6","v":0},{"$f":"+'REPRESENTANTE LEGAL'!C145:E145","v":"00:00:00"},{"$f":"+'REPRESENTANTE LEGAL'!$C$6","v":0},{"$f":"+'REPRESENTANTE LEGAL'!$F$6","v":0},"LIBRO RUBRICADO","NOMBRE LIBRO","NRO. DEL LIBRO","ENCUADERNADO -E- / MÓVIL -M-","1ER FOLIO DEL LIBRO","ÚLTIMO FOLIO DEL LIBRO","NRO. EXPTE.","FOJAS"]
[0,"RU",{"$f":"+'REPRESENTANTE LEGAL'!$C$6","v":0},{"$f":"+'REPRESENTANTE LEGAL'!C146:E146","v":"00:00:00"},{"$f":"+'REPRESENTANTE LEGAL'!$C$6","v":0},{"$f":"+'REPRESENTANTE LEGAL'!$F$6","v":0},"LIBRO RUBRICADO",{"$f":"+'REPRESENTANTE LEGAL'!B22","v":0},{"$f":"+'REPRESENTANTE LEGAL'!C22","v":0},{"$f":"+'REPRESENTANTE LEGAL'!D22","v":"ELEGIR"},{"$f":"+'REPRESENTANTE LEGAL'!E22","v":0},{"$f":"+'REPRESENTANTE LEGAL'!F22","v":0},{"$f":"+'REPRESENTANTE LEGAL'!G101","v":0},{"$f":"+'REPRESENTANTE LEGAL'!H101","v":0}]
[0,"RU",{"$f":"+'REPRESENTANTE LEGAL'!$C$6","v":0},{"$f":"+'REPRESENTANTE LEGAL'!C147:E147","v":"00:00:00"},{"$f":"+'REPRESENTANTE LEGAL'!$C$6","v":0},{"$f":"+'REPRESENTANTE LEGAL'!$F$6","v":0},"LIBRO RUBRICADO",{"$f":"+'REPRESENTANTE LEGAL'!B23","v":0},{"$f":"+'REPRESENTANTE LEGAL'!C23","v":0},{"$f":"+'REPRESENTANTE LEGAL'!D23","v":"ELEGIR"},{"$f":"+'REPRESENTANTE LEGAL'!E23","v":0},{"$f":"+'REPRESENTANTE LEGAL'!F23","v":0},{"$f":"+'REPRESENTANTE LEGAL'!G102","v":0},{"$f":"+'REPRESENTANTE LEGAL'!H102","v":0}]
[0,"RU",{"$f":"+'REPRESENTANTE LEGAL'!$C$6","v":0},{"$f":"+'REPRESENTANTE LEGAL'!C148:E148","v":"00:00:00"},{"$f":"+'REPRESENTANTE LEGAL'!$C$6","v":0},{"$f":"+'REPRESENTANTE LEGAL'!$F$6","v":0},"LIBRO RUBRICADO",{"$f":"+'REPRESENTANTE LEGAL'!B24","v":0},{"$f":"+'REPRESENTANTE LEGAL'!C24","v":0},{"$f":"+'REPRESENTANTE LEGAL'!D24","v":"ELEGIR"},{"$f":"+'REPRESENTANTE LEGAL'!E24","v":0},{"$f":"+'REPRESENTANTE LEGAL'!F24","v":0},{"$f":"+'REPRESENTANTE LEGAL'!G103","v":0},{"$f":"+'REPRESENTANTE LEGAL'!H103","v":0}]
[0,"RU",{"$f":"+'REPRESENTANTE LEGAL'!$C$6","v":0},{"$f":"+'REPRESENTANTE LEGAL'!C149:E149","v":"00:00:00"},{"$f":"+'REPRESENTANTE LEGAL'!$C$6","v":0},{"$f":"+'REPRESENTANTE LEGAL'!$F$6","v":0},"LIBRO RUBRICADO",{"$f":"+'REPRESENTANTE LEGAL'!B25","v":0},{"$f":"+'REPRESENTANTE LEGAL'!C25","v":0},{"$f":"+'REPRESENTANTE LEGAL'!D25","v":"ELEGIR"},{"$f":"+'REPRESENTANTE LEGAL'!E25","v":0},{"$f":"+'REPRESENTANTE LEGAL'!F25","v":0},{"$f":"+'REPRESENTANTE LEGAL'!G104","v":0},{"$f":"+'REPRESENTANTE LEGAL'!H104","v":0}]
[0,"RU",{"$f":"+'REPRESENTANTE LEGAL'!$C$6","v":0},{"$f":"+'REPRESENTANTE LEGAL'!C150:E150","v":"00:00:00"},{"$f":"+'REPRESENTANTE LEGAL'!$C$6","v":0},{"$f":"+'REPRESENTANTE LEGAL'!$F$6","v":0},"LIBRO RUBRICADO",{"$f":"+'REPRESENTANTE LEGAL'!B26","v":0},{"$f":"+'REPRESENTANTE LEGAL'!C26","v":0},{"$f":"+'REPRESENTANTE LEGAL'!D26","v":"ELEGIR"},{"$f":"+'REPRESENTANTE LEGAL'!E26","v":0},{"$f":"+'REPRESENTANTE LEGAL'!F26","v":0},{"$f":"+'REPRESENTANTE LEGAL'!G105","v":0},{"$f":"+'REPRESENTANTE LEGAL'!H105","v":0}]
[0,"RU",{"$f":"+'REPRESENTANTE LEGAL'!$C$6","v":0},{"$f":"+'REPRESENTANTE LEGAL'!C151:E151","v":"00:00:00"},{"$f":"+'REPRESENTANTE LEGAL'!$C$6","v":0},{"$f":"+'REPRESENTANTE LEGAL'!$F$6","v":0},"LIBRO RUBRICADO",{"$f":"+'REPRESENTANTE LEGAL'!B27","v":0},{"$f":"+'REPRESENTANTE LEGAL'!C27","v":0},{"$f":"+'REPRESENTANTE LEGAL'!D27","v":"ELEGIR"},{"$f":"+'REPRESENTANTE LEGAL'!E27","v":0},{"$f":"+'REPRESENTANTE LEGAL'!F27","v":0},{"$f":"+'REPRESENTANTE LEGAL'!G106","v":0},{"$f":"+'REPRESENTANTE LEGAL'!H106","v":0}]
[0,"RU",{"$f":"+'REPRESENTANTE LEGAL'!$C$6","v":0},{"$f":"+'REPRESENTANTE LEGAL'!C152:E152","v":"00:00:00"},{"$f":"+'REPRESENTANTE LEGAL'!$C$6","v":0},{"$f":"+'REPRESENTANTE LEGAL'!$F$6","v":0},"LIBRO RUBRICADO",{"$f":"+'REPRESENTANTE LEGAL'!B28","v":0},{"$f":"+'REPRESENTANTE LEGAL'!C28","v":0},{"$f":"+'REPRESENTANTE LEGAL'!D28","v":"ELEGIR"},{"$f":"+'REPRESENTANTE LEGAL'!E28","v":0},{"$f":"+'REPRESENTANTE LEGAL'!F28","v":0},{"$f":"+'REPRESENTANTE LEGAL'!G107","v":0},{"$f":"+'REPRESENTANTE LEGAL'!H107","v":0}]
[0,"RU",{"$f":"+'REPRESENTANTE LEGAL'!$C$6","v":0},{"$f":"+'REPRESENTANTE LEGAL'!C153:E153","v":"00:00:00"},{"$f":"+'REPRESENTANTE LEGAL'!$C$6","v":0},{"$f":"+'REPRESENTANTE LEGAL'!$F$6","v":0},"LIBRO RUBRICADO",{"$f":"+'REPRESENTANTE LEGAL'!B29","v":0},{"$f":"+'REPRESENTANTE LEGAL'!C29","v":0},{"$f":"+'REPRESENTANTE LEGAL'!D29","v":"ELEGIR"},{"$f":"+'REPRESENTANTE LEGAL'!E29","v":0},{"$f":"+'REPRESENTANTE LEGAL'!F29","v":0},{"$f":"+'REPRESENTANTE LEGAL'!G108","v":0},{"$f":"+'REPRESENTANTE LEGAL'!H108","v":0}]
[0,"RU",{"$f":"+'REPRESENTANTE LEGAL'!$C$6","v":0},{"$f":"+'REPRESENTANTE LEGAL'!C154:E154","v":"00:00:00"},{"$f":"+'REPRESENTANTE LEGAL'!$C$6","v":0},{"$f":"+'REPRESENTANTE LEGAL'!$F$6","v":0},"LIBRO RUBRICADO",{"$f":"+'REPRESENTANTE LEGAL'!B30","v":0},{"$f":"+'REPRESENTANTE LEGAL'!C30","v":0},{"$f":"+'REPRESENTANTE LEGAL'!D30","v":"ELEGIR"},{"$f":"+'REPRESENTANTE LEGAL'!E30","v":0},{"$f":"+'REPRESENTANTE LEGAL'!F30","v":0},{"$f":"+'REPRESENTANTE LEGAL'!G109","v":0},{"$f":"+'REPRESENTANTE LEGAL'!H109","v":0}]
[0,"RU",{"$f":"+'REPRESENTANTE LEGAL'!$C$6","v":0},{"$f":"+'REPRESENTANTE LEGAL'!C155:E155","v":"00:00:00"},{"$f":"+'REPRESENTANTE LEGAL'!$C$6","v":0},{"$f":"+'REPRESENTANTE LEGAL'!$F$6","v":0},"LIBRO RUBRICADO",{"$f":"+'REPRESENTANTE LEGAL'!B31","v":0},{"$f":"+'REPRESENTANTE LEGAL'!C31","v":0},{"$f":"+'REPRESENTANTE LEGAL'!D31","v":"ELEGIR"},{"$f":"+'REPRESENTANTE LEGAL'!E31","v":0},{"$f":"+'REPRESENTANTE LEGAL'!F31","v":0},{"$f":"+'REPRESENTANTE LEGAL'!G110","v":0},{"$f":"+'REPRESENTANTE LEGAL'!H110","v":0}]
[0,"RU",{"$f":"+'REPRESENTANTE LEGAL'!$C$6","v":0},{"$f":"+'REPRESENTANTE LEGAL'!C156:E156","v":"00:00:00"},{"$f":"+'REPRESENTANTE LEGAL'!$C$6","v":0},{"$f":"+'REPRESENTANTE LEGAL'!$F$6","v":0},"LIBRO RUBRICADO",{"$f":"+'REPRESENTANTE LEGAL'!B32","v":0},{"$f":"+'REPRESENTANTE LEGAL'!C32","v":0},{"$f":"+'REPRESENTANTE LEGAL'!D32","v":"ELEGIR"},{"$f":"+'REPRESENTANTE LEGAL'!E32","v":0},{"$f":"+'REPRESENTANTE LEGAL'!F32","v":0},{"$f":"+'REPRESENTANTE LEGAL'!G111","v":0},{"$f":"+'REPRESENTANTE LEGAL'!H111","v":0}]
[0,"RU",{"$f":"+'REPRESENTANTE LEGAL'!$C$6","v":0},{"$f":"+'REPRESENTANTE LEGAL'!C157:E157","v":"00:00:00"},{"$f":"+'REPRESENTANTE LEGAL'!$C$6","v":0},{"$f":"+'REPRESENTANTE LEGAL'!$F$6","v":0},"LIBRO RUBRICADO",{"$f":"+'REPRESENTANTE LEGAL'!B33","v":0},{"$f":"+'REPRESENTANTE LEGAL'!C33","v":0},{"$f":"+'REPRESENTANTE LEGAL'!D33","v":"ELEGIR"},{"$f":"+'REPRESENTANTE LEGAL'!E33","v":0},{"$f":"+'REPRESENTANTE LEGAL'!F33","v":0},{"$f":"+'REPRESENTANTE LEGAL'!G112","v":0},{"$f":"+'REPRESENTANTE LEGAL'!H112","v":0}]
[0,"RU",{"$f":"+'REPRESENTANTE LEGAL'!$C$6","v":0},{"$f":"+'REPRESENTANTE LEGAL'!C158:E158","v":"00:00:00"},{"$f":"+'REPRESENTANTE LEGAL'!$C$6","v":0},{"$f":"+'REPRESENTANTE LEGAL'!$F$6","v":0},"LIBRO RUBRICADO",{"$f":"+'REPRESENTANTE LEGAL'!B34","v":0},{"$f":"+'REPRESENTANTE LEGAL'!C34","v":0},{"$f":"+'REPRESENTANTE LEGAL'!D34","v":"ELEGIR"},{"$f":"+'REPRESENTANTE LEGAL'!E34","v":0},{"$f":"+'REPRESENTANTE LEGAL'!F34","v":0},{"$f":"+'REPRESENTANTE LEGAL'!G113","v":0},{"$f":"+'REPRESENTANTE LEGAL'!H113","v":0}]
[0,"RU",{"$f":"+'REPRESENTANTE LEGAL'!$C$6","v":0},{"$f":"+'REPRESENTANTE LEGAL'!C159:E159","v":"00:00:00"},{"$f":"+'REPRESENTANTE LEGAL'!$C$6","v":0},{"$f":"+'REPRESENTANTE LEGAL'!$F$6","v":0},"LIBRO RUBRICADO",{"$f":"+'REPRESENTANTE LEGAL'!B35","v":0},{"$f":"+'REPRESENTANTE LEGAL'!C35","v":0},{"$f":"+'REPRESENTANTE LEGAL'!D35","v":"ELEGIR"},{"$f":"+'REPRESENTANTE LEGAL'!E35","v":0},{"$f":"+'REPRESENTANTE LEGAL'!F35","v":0},{"$f":"+'REPRESENTANTE LEGAL'!G114","v":0},{"$f":"+'REPRESENTANTE LEGAL'!H114","v":0}]
[0,"RU",{"$f":"+'REPRESENTANTE LEGAL'!$C$6","v":0},{"$f":"+'REPRESENTANTE LEGAL'!C160:E160","v":"00:00:00"},{"$f":"+'REPRESENTANTE LEGAL'!$C$6","v":0},{"$f":"+'REPRESENTANTE LEGAL'!$F$6","v":0},"LIBRO RUBRICADO",{"$f":"+'REPRESENTANTE LEGAL'!B36","v":0},{"$f":"+'REPRESENTANTE LEGAL'!C36","v":0},{"$f":"+'REPRESENTANTE LEGAL'!D36","v":"ELEGIR"},{"$f":"+'REPRESENTANTE LEGAL'!E36","v":0},{"$f":"+'REPRESENTANTE LEGAL'!F36","v":0},{"$f":"+'REPRESENTANTE LEGAL'!G115","v":0},{"$f":"+'REPRESENTANTE LEGAL'!H115","v":0}]
[0,"RU",{"$f":"+'REPRESENTANTE LEGAL'!$C$6","v":0},{"$f":"+'REPRESENTANTE LEGAL'!C161:E161","v":"00:00:00"},{"$f":"+'REPRESENTANTE LEGAL'!$C$6","v":0},{"$f":"+'REPRESENTANTE LEGAL'!$F$6","v":0},"LIBRO RUBRICADO",{"$f":"+'REPRESENTANTE LEGAL'!B37","v":0},{"$f":"+'REPRESENTANTE LEGAL'!C37","v":0},{"$f":"+'REPRESENTANTE LEGAL'!D37","v":"ELEGIR"},{"$f":"+'REPRESENTANTE LEGAL'!E37","v":0},{"$f":"+'REPRESENTANTE LEGAL'!F37","v":0},{"$f":"+'REPRESENTANTE LEGAL'!G116","v":0},{"$f":"+'REPRESENTANTE LEGAL'!H116","v":0}]
[0,"RU",{"$f":"+'REPRESENTANTE LEGAL'!$C$6","v":0},{"$f":"+'REPRESENTANTE LEGAL'!C162:E162","v":"00:00:00"},{"$f":"+'REPRESENTANTE LEGAL'!$C$6","v":0},{"$f":"+'REPRESENTANTE LEGAL'!$F$6","v":0},"LIBRO RUBRICADO",{"$f":"+'REPRESENTANTE LEGAL'!B38","v":0},{"$f":"+'REPRESENTANTE LEGAL'!C38","v":0},{"$f":"+'REPRESENTANTE LEGAL'!D38","v":"ELEGIR"},{"$f":"+'REPRESENTANTE LEGAL'!E38","v":0},{"$f":"+'REPRESENTANTE LEGAL'!F38","v":0},{"$f":"+'REPRESENTANTE LEGAL'!G117","v":0},{"$f":"+'REPRESENTANTE LEGAL'!H117","v":0}]
[0,"RU",{"$f":"+'REPRESENTANTE LEGAL'!$C$6","v":0},{"$f":"+'REPRESENTANTE LEGAL'!C163:E163","v":"00:00:00"},{"$f":"+'REPRESENTANTE LEGAL'!$C$6","v":0},{"$f":"+'REPRESENTANTE LEGAL'!$F$6","v":0},"LIBRO RUBRICADO",{"$f":"+'REPRESENTANTE LEGAL'!B39","v":0},{"$f":"+'REPRESENTANTE LEGAL'!C39","v":0},{"$f":"+'REPRESENTANTE LEGAL'!D39","v":"ELEGIR"},{"$f":"+'REPRESENTANTE LEGAL'!E39","v":0},{"$f":"+'REPRESENTANTE LEGAL'!F39","v":0},{"$f":"+'REPRESENTANTE LEGAL'!G118","v":0},{"$f":"+'REPRESENTANTE LEGAL'!H118","v":0}]
[0,"RU",{"$f":"+'REPRESENTANTE LEGAL'!$C$6","v":0},{"$f":"+'REPRESENTANTE LEGAL'!C164:E164","v":"00:00:00"},{"$f":"+'REPRESENTANTE LEGAL'!$C$6","v":0},{"$f":"+'REPRESENTANTE LEGAL'!$F$6","v":0},"LIBRO RUBRICADO",{"$f":"+'REPRESENTANTE LEGAL'!B40","v":0},{"$f":"+'REPRESENTANTE LEGAL'!C40","v":0},{"$f":"+'REPRESENTANTE LEGAL'!D40","v":"ELEGIR"},{"$f":"+'REPRESENTANTE LEGAL'!E40","v":0},{"$f":"+'REPRESENTANTE LEGAL'!F40","v":0},{"$f":"+'REPRESENTANTE LEGAL'!G119","v":0},{"$f":"+'REPRESENTANTE LEGAL'!H119","v":0}]
[0,"RU",{"$f":"+'REPRESENTANTE LEGAL'!$C$6","v":0},{"$f":"+'REPRESENTANTE LEGAL'!C165:E165","v":"00:00:00"},{"$f":"+'REPRESENTANTE LEGAL'!$C$6","v":0},{"$f":"+'REPRESENTANTE LEGAL'!$F$6","v":0},"LIBRO RUBRICADO",{"$f":"+'REPRESENTANTE LEGAL'!B41","v":0},{"$f":"+'REPRESENTANTE LEGAL'!C41","v":0},{"$f":"+'REPRESENTANTE LEGAL'!D41","v":"ELEGIR"},{"$f":"+'REPRESENTANTE LEGAL'!E41","v":0},{"$f":"+'REPRESENTANTE LEGAL'!F41","v":0},{"$f":"+'REPRESENTANTE LEGAL'!G120","v":0},{"$f":"+'REPRESENTANTE LEGAL'!H120","v":0}]
[0,"RU",{"$f":"+'REPRESENTANTE LEGAL'!$C$6","v":0},{"$f":"+'REPRESENTANTE LEGAL'!C166:E166","v":"00:00:00"},{"$f":"+'REPRESENTANTE LEGAL'!$C$6","v":0},{"$f":"+'REPRESENTANTE LEGAL'!$F$6","v":0},"LIBRO RUBRICADO",{"$f":"+'REPRESENTANTE LEGAL'!B45","v":0},{"$f":"+'REPRESENTANTE LEGAL'!C45","v":0},{"$f":"+'REPRESENTANTE LEGAL'!D45","v":"ELEGIR"},{"$f":"+'REPRESENTANTE LEGAL'!E45","v":0},{"$f":"+'REPRESENTANTE LEGAL'!F45","v":0},{"$f":"+'REPRESENTANTE LEGAL'!G124","v":0},{"$f":"+'REPRESENTANTE LEGAL'!H124","v":0}]
[0,"RU",{"$f":"+'REPRESENTANTE LEGAL'!$C$6","v":0},{"$f":"+'REPRESENTANTE LEGAL'!C167:E167","v":"00:00:00"},{"$f":"+'REPRESENTANTE LEGAL'!$C$6","v":0},{"$f":"+'REPRESENTANTE LEGAL'!$F$6","v":0},"LIBRO RUBRICADO",{"$f":"+'REPRESENTANTE LEGAL'!B46","v":0},{"$f":"+'REPRESENTANTE LEGAL'!C46","v":0},{"$f":"+'REPRESENTANTE LEGAL'!D46","v":"ELEGIR"},{"$f":"+'REPRESENTANTE LEGAL'!E46","v":0},{"$f":"+'REPRESENTANTE LEGAL'!F46","v":0},{"$f":"+'REPRESENTANTE LEGAL'!G125","v":0},{"$f":"+'REPRESENTANTE LEGAL'!H125","v":0}]
[0,"RU",{"$f":"+'REPRESENTANTE LEGAL'!$C$6","v":0},{"$f":"+'REPRESENTANTE LEGAL'!C168:E168","v":"00:00:00"},{"$f":"+'REPRESENTANTE LEGAL'!$C$6","v":0},{"$f":"+'REPRESENTANTE LEGAL'!$F$6","v":0},"LIBRO RUBRICADO",{"$f":"+'REPRESENTANTE LEGAL'!B47","v":0},{"$f":"+'REPRESENTANTE LEGAL'!C47","v":0},{"$f":"+'REPRESENTANTE LEGAL'!D47","v":"ELEGIR"},{"$f":"+'REPRESENTANTE LEGAL'!E47","v":0},{"$f":"+'REPRESENTANTE LEGAL'!F47","v":0},{"$f":"+'REPRESENTANTE LEGAL'!G126","v":0},{"$f":"+'REPRESENTANTE LEGAL'!H126","v":0}]
[0,"RU",{"$f":"+'REPRESENTANTE LEGAL'!$C$6","v":0},{"$f":"+'REPRESENTANTE LEGAL'!C169:E169","v":"00:00:00"},{"$f":"+'REPRESENTANTE LEGAL'!$C$6","v":0},{"$f":"+'REPRESENTANTE LEGAL'!$F$6","v":0},"LIBRO RUBRICADO",{"$f":"+'REPRESENTANTE LEGAL'!B48","v":0},{"$f":"+'REPRESENTANTE LEGAL'!C48","v":0},{"$f":"+'REPRESENTANTE LEGAL'!D48","v":"ELEGIR"},{"$f":"+'REPRESENTANTE LEGAL'!E48","v":0},{"$f":"+'REPRESENTANTE LEGAL'!F48","v":0},{"$f":"+'REPRESENTANTE LEGAL'!G127","v":0},{"$f":"+'REPRESENTANTE LEGAL'!H127","v":0}]
[0,"RU",{"$f":"+'REPRESENTANTE LEGAL'!$C$6","v":0},{"$f":"+'REPRESENTANTE LEGAL'!C170:E170","v":"00:00:00"},{"$f":"+'REPRESENTANTE LEGAL'!$C$6","v":0},{"$f":"+'REPRESENTANTE LEGAL'!$F$6","v":0},"LIBRO RUBRICADO",{"$f":"+'REPRESENTANTE LEGAL'!B49","v":0},{"$f":"+'REPRESENTANTE LEGAL'!C49","v":0},{"$f":"+'REPRESENTANTE LEGAL'!D49","v":"ELEGIR"},{"$f":"+'REPRESENTANTE LEGAL'!E49","v":0},{"$f":"+'REPRESENTANTE LEGAL'!F49","v":0},{"$f":"+'REPRESENTANTE LEGAL'!G128","v":0},{"$f":"+'REPRESENTANTE LEGAL'!H128","v":0}]
[0,"RU",{"$f":"+'REPRESENTANTE LEGAL'!$C$6","v":0},{"$f":"+'REPRESENTANTE LEGAL'!C171:E171","v":"00:00:00"},{"$f":"+'REPRESENTANTE LEGAL'!$C$6","v":0},{"$f":"+'REPRESENTANTE LEGAL'!$F$6","v":0},"LIBRO RUBRICADO",{"$f":"+'REPRESENTANTE LEGAL'!B50","v":0},{"$f":"+'REPRESENTANTE LEGAL'!C50","v":0},{"$f":"+'REPRESENTANTE LEGAL'!D50","v":"ELEGIR"},{"$f":"+'REPRESENTANTE LEGAL'!E50","v":0},{"$f":"+'REPRESENTANTE LEGAL'!F50","v":0},{"$f":"+'REPRESENTANTE LEGAL'!G129","v":0},{"$f":"+'REPRESENTANTE LEGAL'!H129","v":0}]
[0,"RU",{"$f":"+'REPRESENTANTE LEGAL'!$C$6","v":0},{"$f":"+'REPRESENTANTE LEGAL'!C172:E172","v":"00:00:00"},{"$f":"+'REPRESENTANTE LEGAL'!$C$6","v":0},{"$f":"+'REPRESENTANTE LEGAL'!$F$6","v":0},"LIBRO RUBRICADO",{"$f":"+'REPRESENTANTE LEGAL'!B51","v":0},{"$f":"+'REPRESENTANTE LEGAL'!C51","v":0},{"$f":"+'REPRESENTANTE LEGAL'!D51","v":"ELEGIR"},{"$f":"+'REPRESENTANTE LEGAL'!E51","v":0},{"$f":"+'REPRESENTANTE LEGAL'!F51","v":0},{"$f":"+'REPRESENTANTE LEGAL'!G130","v":0},{"$f":"+'REPRESENTANTE LEGAL'!H130","v":0}]
[0,"RU",{"$f":"+'REPRESENTANTE LEGAL'!$C$6","v":0},{"$f":"+'REPRESENTANTE LEGAL'!C173:E173","v":"00:00:00"},{"$f":"+'REPRESENTANTE LEGAL'!$C$6","v":0},{"$f":"+'REPRESENTANTE LEGAL'!$F$6","v":0},"LIBRO RUBRICADO",{"$f":"+'REPRESENTANTE LEGAL'!B52","v":0},{"$f":"+'REPRESENTANTE LEGAL'!C52","v":0},{"$f":"+'REPRESENTANTE LEGAL'!D52","v":"ELEGIR"},{"$f":"+'REPRESENTANTE LEGAL'!E52","v":0},{"$f":"+'REPRESENTANTE LEGAL'!F52","v":0},{"$f":"+'REPRESENTANTE LEGAL'!G131","v":0},{"$f":"+'REPRESENTANTE LEGAL'!H131","v":0}]
[0,"RU",{"$f":"+'REPRESENTANTE LEGAL'!$C$6","v":0},{"$f":"+'REPRESENTANTE LEGAL'!C174:E174","v":"00:00:00"},{"$f":"+'REPRESENTANTE LEGAL'!$C$6","v":0},{"$f":"+'REPRESENTANTE LEGAL'!$F$6","v":0},"LIBRO RUBRICADO",{"$f":"+'REPRESENTANTE LEGAL'!B53","v":0},{"$f":"+'REPRESENTANTE LEGAL'!C53","v":0},{"$f":"+'REPRESENTANTE LEGAL'!D53","v":"ELEGIR"},{"$f":"+'REPRESENTANTE LEGAL'!E53","v":0},{"$f":"+'REPRESENTANTE LEGAL'!F53","v":0},{"$f":"+'REPRESENTANTE LEGAL'!G132","v":0},{"$f":"+'REPRESENTANTE LEGAL'!H132","v":0}]
[0,"RU",{"$f":"+'REPRESENTANTE LEGAL'!$C$6","v":0},{"$f":"+'REPRESENTANTE LEGAL'!C175:E175","v":"00:00:00"},{"$f":"+'REPRESENTANTE LEGAL'!$C$6","v":0},{"$f":"+'REPRESENTANTE LEGAL'!$F$6","v":0},"LIBRO RUBRICADO",{"$f":"+'REPRESENTANTE LEGAL'!B54","v":0},{"$f":"+'REPRESENTANTE LEGAL'!C54","v":0},{"$f":"+'REPRESENTANTE LEGAL'!D54","v":"ELEGIR"},{"$f":"+'REPRESENTANTE LEGAL'!E54","v":0},{"$f":"+'REPRESENTANTE LEGAL'!F54","v":0},{"$f":"+'REPRESENTANTE LEGAL'!G133","v":0},{"$f":"+'REPRESENTANTE LEGAL'!H133","v":0}]
[0,"RU",{"$f":"+'REPRESENTANTE LEGAL'!$C$6","v":0},{"$f":"+'REPRESENTANTE LEGAL'!C176:E176","v":"00:00:00"},{"$f":"+'REPRESENTANTE LEGAL'!$C$6","v":0},{"$f":"+'REPRESENTANTE LEGAL'!$F$6","v":0},"LIBRO RUBRICADO",{"$f":"+'REPRESENTANTE LEGAL'!B55","v":0},{"$f":"+'REPRESENTANTE LEGAL'!C55","v":0},{"$f":"+'REPRESENTANTE LEGAL'!D55","v":"ELEGIR"},{"$f":"+'REPRESENTANTE LEGAL'!E55","v":0},{"$f":"+'REPRESENTANTE LEGAL'!F55","v":0},{"$f":"+'REPRESENTANTE LEGAL'!G134","v":0},{"$f":"+'REPRESENTANTE LEGAL'!H134","v":0}]
[0,"RU",{"$f":"+'REPRESENTANTE LEGAL'!$C$6","v":0},{"$f":"+'REPRESENTANTE LEGAL'!C177:E177","v":"00:00:00"},{"$f":"+'REPRESENTANTE LEGAL'!$C$6","v":0},{"$f":"+'REPRESENTANTE LEGAL'!$F$6","v":0},"LIBRO RUBRICADO",{"$f":"+'REPRESENTANTE LEGAL'!B56","v":0},{"$f":"+'REPRESENTANTE LEGAL'!C56","v":0},{"$f":"+'REPRESENTANTE LEGAL'!D56","v":"ELEGIR"},{"$f":"+'REPRESENTANTE LEGAL'!E56","v":0},{"$f":"+'REPRESENTANTE LEGAL'!F56","v":0},{"$f":"+'REPRESENTANTE LEGAL'!G135","v":0},{"$f":"+'REPRESENTANTE LEGAL'!H135","v":0}]
[0,"RU",{"$f":"+'REPRESENTANTE LEGAL'!$C$6","v":0},{"$f":"+'REPRESENTANTE LEGAL'!C178:E178","v":"00:00:00"},{"$f":"+'REPRESENTANTE LEGAL'!$C$6","v":0},{"$f":"+'REPRESENTANTE LEGAL'!$F$6","v":0},"LIBRO RUBRICADO",{"$f":"+'REPRESENTANTE LEGAL'!B57","v":0},{"$f":"+'REPRESENTANTE LEGAL'!C57","v":0},{"$f":"+'REPRESENTANTE LEGAL'!D57","v":"ELEGIR"},{"$f":"+'REPRESENTANTE LEGAL'!E57","v":0},{"$f":"+'REPRESENTANTE LEGAL'!F57","v":0},{"$f":"+'REPRESENTANTE LEGAL'!G136","v":0},{"$f":"+'REPRESENTANTE LEGAL'!H136","v":0}]
[0,"RU",{"$f":"+'REPRESENTANTE LEGAL'!$C$6","v":0},{"$f":"+'REPRESENTANTE LEGAL'!C179:E179","v":"00:00:00"},{"$f":"+'REPRESENTANTE LEGAL'!$C$6","v":0},{"$f":"+'REPRESENTANTE LEGAL'!$F$6","v":0},"LIBRO RUBRICADO",{"$f":"+'REPRESENTANTE LEGAL'!B58","v":0},{"$f":"+'REPRESENTANTE LEGAL'!C58","v":0},{"$f":"+'REPRESENTANTE LEGAL'!D58","v":"ELEGIR"},{"$f":"+'REPRESENTANTE LEGAL'!E58","v":0},{"$f":"+'REPRESENTANTE LEGAL'!F58","v":0},{"$f":"+'REPRESENTANTE LEGAL'!G137","v":0},{"$f":"+'REPRESENTANTE LEGAL'!H137","v":0}]
[0,"RU",{"$f":"+'REPRESENTANTE LEGAL'!$C$6","v":0},{"$f":"+'REPRESENTANTE LEGAL'!C180:E180","v":"00:00:00"},{"$f":"+'REPRESENTANTE LEGAL'!$C$6","v":0},{"$f":"+'REPRESENTANTE LEGAL'!$F$6","v":0},"LIBRO RUBRICADO",{"$f":"+'REPRESENTANTE LEGAL'!B59","v":0},{"$f":"+'REPRESENTANTE LEGAL'!C59","v":0},{"$f":"+'REPRESENTANTE LEGAL'!D59","v":"ELEGIR"},{"$f":"+'REPRESENTANTE LEGAL'!E59","v":0},{"$f":"+'REPRESENTANTE LEGAL'!F59","v":0},{"$f":"+'REPRESENTANTE LEGAL'!G138","v":0},{"$f":"+'REPRESENTANTE LEGAL'!H138","v":0}]
[0,"RU",{"$f":"+'REPRESENTANTE LEGAL'!$C$6","v":0},{"$f":"+'REPRESENTANTE LEGAL'!C181:E181","v":"00:00:00"},{"$f":"+'REPRESENTANTE LEGAL'!$C$6","v":0},{"$f":"+'REPRESENTANTE LEGAL'!$F$6","v":0},"LIBRO RUBRICADO",{"$f":"+'REPRESENTANTE LEGAL'!B60","v":0},{"$f":"+'REPRESENTANTE LEGAL'!C60","v":0},{"$f":"+'REPRESENTANTE LEGAL'!D60","v":"ELEGIR"},{"$f":"+'REPRESENTANTE LEGAL'!E60","v":0},{"$f":"+'REPRESENTANTE LEGAL'!F60","v":0},{"$f":"+'REPRESENTANTE LEGAL'!G139","v":0},{"$f":"+'REPRESENTANTE LEGAL'!H139","v":0}]
[0,"RU",{"$f":"+'REPRESENTANTE LEGAL'!$C$6","v":0},{"$f":"+'REPRESENTANTE LEGAL'!C182:E182","v":"00:00:00"},{"$f":"+'REPRESENTANTE LEGAL'!$C$6","v":0},{"$f":"+'REPRESENTANTE LEGAL'!$F$6","v":0},"LIBRO RUBRICADO",{"$f":"+'REPRESENTANTE LEGAL'!B61","v":0},{"$f":"+'REPRESENTANTE LEGAL'!C61","v":0},{"$f":"+'REPRESENTANTE LEGAL'!D61","v":"ELEGIR"},{"$f":"+'REPRESENTANTE LEGAL'!E61","v":0},{"$f":"+'REPRESENTANTE LEGAL'!F61","v":0},{"$f":"+'REPRESENTANTE LEGAL'!G140","v":0},{"$f":"+'REPRESENTANTE LEGAL'!H140","v":0}]
[0,"RU",{"$f":"+'REPRESENTANTE LEGAL'!$C$6","v":0},{"$f":"+'REPRESENTANTE LEGAL'!C183:E183","v":"00:00:00"},{"$f":"+'REPRESENTANTE LEGAL'!$C$6","v":0},{"$f":"+'REPRESENTANTE LEGAL'!$F$6","v":0},"LIBRO RUBRICADO",{"$f":"+'REPRESENTANTE LEGAL'!B62","v":0},{"$f":"+'REPRESENTANTE LEGAL'!C62","v":0},{"$f":"+'REPRESENTANTE LEGAL'!D62","v":"ELEGIR"},{"$f":"+'REPRESENTANTE LEGAL'!E62","v":0},{"$f":"+'REPRESENTANTE LEGAL'!F62","v":0},{"$f":"+'REPRESENTANTE LEGAL'!G141","v":0},{"$f":"+'REPRESENTANTE LEGAL'!H141","v":0}]